Workbook

Sheet Triangulos
A1: Datos Swis Re (2008) | B1: 0 | C1: 1 | D1: 2 | E1: 3 | F1: 4 | G1: 5 | H1: 6 | I1: 7 | J1: 8 | K1: 9
A2: 0 | B2: 206 | C2: 1016 | D2: 2090 | E2: 3109 | F2: 3931 | G2: 4529 | H2: 4801 | I2: 5004 | J2: 5135 | K2: 5229
A3: 1 | B3: 222 | C3: 1096 | D3: 2365 | E3: 3470 | F3: 4396 | G3: 5020 | H3: 5379 | I3: 5603 | J3: 5773
A4: 2 | B4: 188 | C4: 1114 | D4: 2462 | E4: 3662 | F4: 4510 | G4: 5044 | H4: 5417 | I4: 5643
A5: 3 | B5: 207 | C5: 1130 | D5: 2553 | E5: 3805 | F5: 4491 | G5: 5011 | H5: 5401
A6: 4 | B6: 228 | C6: 1382 | D6: 2865 | E6: 4101 | F6: 5005 | G6: 5617
A7: 5 | B7: 231 | C7: 1287 | D7: 2763 | E7: 4001 | F7: 4970
A8: 6 | B8: 184 | C8: 1160 | D8: 2386 | E8: 3375
A9: 7 | B9: 172 | C9: 920 | D9: 1811
A10: 8 | B10: 170 | C10: 910
A11: 9 | B11: 186
A14: Chain Ladder | B14: 0 | C14: 1 | D14: 2 | E14: 3 | F14: 4 | G14: 5 | H14: 6 | I14: 7 | J14: 8 | K14: 9 | Y14: Incrementos Chain Ladder | Z14: 0 | AA14: 1 | AB14: 2 | AC14: 3 | AD14: 4 | AE14: 5 | AF14: 6 | AG14: 7 | AH14: 8 | AI14: 9
A15: 0 | B15: =B2 -> 206 | C15: 1016 | D15: 2090 | E15: 3109 | F15: 3931 | G15: 4529 | H15: 4801 | I15: 5004 | J15: 5135 | K15: 5229 | Y15: 0 | Z15: =B15 -> 206 | AA15: =C15-B15 -> 810 | AB15: 1074 | AC15: 1019 | AD15: 822 | AE15: 598 | AF15: 272 | AG15: 203 | AH15: =J15-I15 -> 131 | AI15: =K15-J15 -> 94
A16: 1 | B16: =B3 -> 222 | C16: 1096 | D16: 2365 | E16: 3470 | F16: 4396 | G16: 5020 | H16: 5379 | I16: 5603 | J16: 5773 | K16: =J16+O141 -> 5878.679065 | Y16: 1 | Z16: 222 | AA16: 874 | AB16: 1269 | AC16: 1105 | AD16: 926 | AE16: 624 | AF16: 359 | AG16: 224 | AH16: 170 | AI16: 105.6790652
A17: 2 | B17: =B4 -> 188 | C17: 1114 | D17: 2462 | E17: 3662 | F17: 4510 | G17: 5044 | H17: 5417 | I17: 5643 | J17: =$K17/(1+J$27) -> 5803.134157 | K17: =I17+O142 -> 5909.36485 | Y17: 2 | Z17: 188 | AA17: 926 | AB17: 1348 | AC17: 1200 | AD17: 848 | AE17: 534 | AF17: 373 | AG17: 226 | AH17: 160.1341567 | AI17: 106.2306934
A18: 3 | B18: =B5 -> 207 | C18: 1130 | D18: 2553 | E18: 3805 | F18: 4491 | G18: 5011 | H18: 5401 | I18: =$K18/(1+I$27) -> 5627.123806 | J18: 5786.807436 | K18: =H18+O143 -> 5892.739257 | Y18: 3 | Z18: 207 | AA18: 923 | AB18: 1423 | AC18: 1252 | AD18: 686 | AE18: 520 | AF18: 390 | AG18: =I18-H18 -> 226.1238059 | AH18: =J18-I18 -> 159.6836302 | AI18: 105.9318206
A19: 4 | B19: =B6 -> 228 | C19: 1382 | D19: 2865 | E19: 4101 | F19: 5005 | G19: 5617 | H19: 6016.413283 | I19: 6268.302613 | J19: 6446.181286 | K19: =G19+O144 -> 6564.183436 | Y19: 4 | Z19: 228 | AA19: 1154 | AB19: 1483 | AC19: 1236 | AD19: 904 | AE19: 612 | AF19: =H19-G19 -> 399.413283 | AG19: =I19-H19 -> 251.8893296 | AH19: =J19-I19 -> 177.8786732 | AI19: 118.0021501
A20: 5 | B20: =B7 -> 231 | C20: =C7 -> 1287 | D20: =D7 -> 2763 | E20: =E7 -> 4001 | F20: =F7 -> 4970 | G20: 5612.697354 | H20: 6011.804684 | I20: 6263.501066 | J20: 6441.243483 | K20: =F20+O145 -> 6559.155243 | Y20: 5 | Z20: 231 | AA20: 1056 | AB20: 1476 | AC20: 1238 | AD20: 969 | AE20: =G20-F20 -> 642.6973537 | AF20: =H20-G20 -> 399.1073307 | AG20: =I20-H20 -> 251.6963813 | AH20: =J20-I20 -> 177.7424173 | AI20: 117.91176
A21: 6 | B21: =B8 -> 184 | C21: =C8 -> 1160 | D21: =D8 -> 2386 | E21: =E8 -> 3375 | F21: 4160.539326 | G21: 4698.560979 | H21: 5032.665958 | I21: 5243.368713 | J21: 5392.162338 | K21: =E21+O146 -> 5490.869887 | Y21: 6 | Z21: 184 | AA21: 976 | AB21: 1226 | AC21: 989 | AD21: 785.5393264 | AE21: =G21-F21 -> 538.0216529 | AF21: =H21-G21 -> 334.1049788 | AG21: =I21-H21 -> 210.7027551 | AH21: =J21-I21 -> 148.7936252 | AI21: 98.70754816
A22: 7 | B22: =B9 -> 172 | C22: =C9 -> 920 | D22: =D9 -> 1811 | E22: 2643.682967 | F22: 3259.006504 | G22: 3680.446113 | H22: 3942.155044 | I22: 4107.201351 | J22: 4223.753402 | K22: =D22+O147 -> 4301.072354 | Y22: 7 | Z22: 172 | AA22: 748 | AB22: 891 | AC22: 832.6829673 | AD22: 615.3235369 | AE22: =G22-F22 -> 421.4396088 | AF22: =H22-G22 -> 261.7089309 | AG22: =I22-H22 -> 165.0463066 | AH22: =J22-I22 -> 116.5520511 | AI22: 77.31895224
A23: 8 | B23: =B10 -> 170 | C23: =C10 -> 910 | D23: 1928.440417 | E23: 2815.121527 | F23: 3470.347799 | G23: 3919.117084 | H23: 4197.797415 | I23: 4373.546707 | J23: =$K23/(1+J$27) -> 4497.65697 | K23: =C23+O148 -> 4579.989931 | Y23: 8 | Z23: 170 | AA23: 740 | AB23: 1018.440417 | AC23: 886.6811093 | AD23: 655.2262719 | AE23: =G23-F23 -> 448.769285 | AF23: =H23-G23 -> 278.6803313 | AG23: =I23-H23 -> 175.7492923 | AH23: =J23-I23 -> 124.1102629 | AI23: 82.33296109
A24: 9 | B24: =B11 -> 186 | C24: 1030.304204 | D24: 2183.38491 | E24: 3187.287409 | F24: 3929.136181 | G24: 4437.233852 | H24: 4752.756398 | I24: 4951.740172 | J24: =$K24/(1+J$27) -> 5092.258112 | K24: =B24+O149 -> 5185.47569 | Y24: 9 | Z24: =B24 -> 186 | AA24: =C24-B24 -> 844.3042035 | AB24: =D24-C24 -> 1153.080707 | AC24: =E24-D24 -> 1003.902499 | AD24: =F24-E24 -> 741.8487717 | AE24: =G24-F24 -> 508.0976712 | AF24: =H24-G24 -> 315.5225459 | AG24: =I24-H24 -> 198.9837743 | AH24: =J24-I24 -> 140.5179402 | AI24: 93.21757791
A26: Paso 1: F Chain Ladder | B26: =SUM(C2:C10)/SUM(B2:B10) -> 5.539269912 | C26: =SUM(D2:D9)/SUM(C2:C9) -> 2.119165294 | D26: =SUM(E2:E8)/SUM(D2:D8) -> 1.45979181 | E26: =SUM(F2:F7)/SUM(E2:E7) -> 1.232752393 | F26: =SUM(G2:G6)/SUM(F2:F6) -> 1.129315363 | G26: =SUM(H2:H5)/SUM(G2:G5) -> 1.071107937 | H26: =SUM(I2:I4)/SUM(H2:H4) -> 1.041867026 | I26: =SUM(J2:J3)/SUM(I2:I3) -> 1.028377487 | J26: =SUM(K2)/SUM(J2) -> 1.018305745 | K26: 1
A27: (Producto F ) -1 | B27: =PRODUCT(B26:K26)-1 -> 26.87890156 | C27: =PRODUCT(C26:K26)-1 -> 4.032955968 | D27: =PRODUCT(D26:K26)-1 -> 1.37497093 | E27: =PRODUCT(E26:K26)-1 -> 0.6269244108 | F27: =PRODUCT(F26:K26)-1 -> 0.3197495459 | G27: =PRODUCT(G26:K26)-1 -> 0.1686279929 | H27: =PRODUCT(H26:K26)-1 -> 0.09104596495 | I27: =PRODUCT(I26:K26)-1 -> 0.04720270248 | J27: =PRODUCT(J26:K26)-1 -> 0.01830574489 | K27: =K26-1 -> 0
M29: Total Reservas | Q29: Dotaciones para provisiones de siniestros | W29: Valor Actual
A30: Bootstrap | B30: 0 | C30: 1 | D30: 2 | E30: 3 | F30: 4 | G30: 5 | H30: 6 | I30: 7 | J30: 8 | K30: 9 | N30: Bootstrap | O30: Chain Ladder | R30: Bootstrap | S30: Chain Ladder | U30: Plazo | V30: Tipo de interés | W30: Bootstrap | X30: Chain Ladder | Z30: 0 | AA30: 1 | AB30: 2 | AC30: 3 | AD30: 4 | AE30: 5 | AF30: 6 | AG30: 7 | AH30: 8 | AI30: 9
A31: 0 | B31: =B2 -> 206 | C31: =C2 -> 1016 | D31: 2090 | E31: 3109 | F31: 3931 | G31: 4529 | H31: 4801 | I31: 5004 | J31: 5135 | K31: =K2 -> 5229 | M31: R0 | N31: =K31*K43 -> 0 | O31: =K15*K27 -> 0 | Q31: R0 | R31: 0 | S31: 0 | U31: 0
A32: 1 | B32: =B3 -> 222 | C32: 1096 | D32: 2365 | E32: 3470 | F32: 4396 | G32: 5020 | H32: 5379 | I32: 5603 | J32: 5773 | K32: =J32+K170 -> 5860.266661 | M32: R1 | N32: =SUM(AA32:AI32) -> 87.26666081 | O32: =J16*J27 -> 105.6790652 | Q32: R1 | R32: =AI32+AH33+AG34+AF35+AE36+AD37+AC38+AB39+AA40 -> 4930.566336 | S32: =S141 -> 5015.014579 | U32: 1 | V32: 0.0437 | W32: =(R32/(1+V32)^U32) -> 4724.122196 | X32: =(S32/(1+V32)^U32) -> 4805.034568 | AI32: =K170 -> 87.26666081
A33: 2 | B33: 188 | C33: 1114 | D33: 2462 | E33: 3662 | F33: 4510 | G33: 5044 | H33: 5417 | I33: 5643 | J33: =I33+J171 -> 5802.988878 | K33: 5926.616648 | M33: R2 | N33: =SUM(AA33:AI33) -> 283.6166476 | O33: =I17*I27 -> 266.3648501 | Q33: R2 | R33: =AI33+AH34+AG35+AF36+AE37+AD38+AC39+AB40 -> 4246.977493 | S33: =S142 -> 4110.01799 | U33: 2 | V33: 0.0451 | W33: =(R33/(1+V33)^U33) -> 3888.340277 | X33: =(S33/(1+V33)^U33) -> 3762.946358 | AH33: =J171 -> 159.9888782 | AI33: 123.6277695
A34: 3 | B34: 207 | C34: 1130 | D34: 2553 | E34: 3805 | F34: 4491 | G34: 5011 | H34: 5401 | I34: =H34+I172 -> 5706.433313 | J34: 5931.872187 | K34: 6011.866626 | M34: R3 | N34: 610.8666257 | O34: =H18*H27 -> 491.7392567 | Q34: R3 | R34: =AI34+AH35+AG36+AF37+AE38+AD39+AC40 -> 2988.883133 | S34: 2950.180234 | U34: 3 | V34: 0.0454 | W34: 2616.142806 | X34: 2582.266503 | AG34: =I172 -> 305.4333128 | AH34: 225.4388738 | AI34: 79.99443908
A35: 4 | B35: 228 | C35: 1382 | D35: 2865 | E35: 4101 | F35: 5005 | G35: 5617 | H35: =G35+H173 -> 6118.7833 | I35: 6366.038839 | J35: 6620.566599 | K35: 6736.922147 | M35: R4 | N35: 1119.922147 | O35: =G19*G27 -> 947.1834359 | Q35: R4 | R35: =AI35+AH36+AG37+AF38+AE39+AD40 -> 2036.222086 | S35: 1958.77431 | U35: 4 | V35: 0.0457 | W35: 1702.929667 | X35: 1638.15868 | AF35: =H173 -> 501.7832997 | AG35: 247.255539 | AH35: 254.5277607 | AI35: 116.3555478
A36: 5 | B36: 231 | C36: 1287 | D36: 2763 | E36: 4001 | F36: =F7 -> 4970 | G36: =F36+G174 -> 5537.233295 | H36: 5900.844382 | I36: 6133.555478 | J36: 6322.633243 | K36: 6438.98879 | M36: R5 | N36: 1468.98879 | O36: =F20*F27 -> 1589.155243 | Q36: R5 | R36: =AI36+AH37+AG38+AF39+AE40 -> 1258.09436 | S36: 1218.529694 | U36: 5 | V36: 0.046 | W36: 1004.742546 | X36: 973.1453107 | AE36: =G174 -> 567.2332953 | AF36: 363.6110867 | AG36: 232.7110955 | AH36: 189.0777651 | AI36: 116.3555478
A37: 6 | B37: 184 | C37: 1160 | D37: 2386 | E37: 3375 | F37: =E37+F175 -> 4153.127726 | G37: 4734.905464 | H37: 5025.794334 | I37: 5287.594316 | J37: 5476.672081 | K37: 5585.755407 | M37: R6 | N37: 2210.755407 | O37: =E21*E27 -> 2115.869887 | Q37: R6 | R37: =AI37+AH38+AG39+AF40 -> 639.9555126 | S37: 706.5314375 | U37: 6 | V37: 0.0462 | W37: 488.0468233 | X37: 538.8193661 | AD37: =F175 -> 778.1277256 | AE37: 581.7777388 | AF37: 290.8888694 | AG37: 261.7999824 | AH37: 189.0777651 | AI37: 109.083326
A38: 7 | B38: 172 | C38: 920 | D38: 1811 | E38: =D38+E176 -> 2581.855504 | F38: 3163.633243 | G38: 3512.699886 | H38: 3745.410981 | I38: 3941.760968 | J38: 4021.755407 | K38: 4094.477625 | M38: R7 | N38: 2283.477625 | O38: =D22*D27 -> 2490.072354 | Q38: R7 | R38: =AI38+AH39+AG40 -> 465.422191 | S38: 400.4129895 | U38: 7 | V38: 0.0464 | W38: 338.8152655 | X38: 291.4902554 | AC38: =E176 -> 770.8555039 | AD38: 581.7777388 | AE38: 349.0666433 | AF38: 232.7110955 | AG38: 196.3499868 | AH38: 79.99443908 | AI38: 72.72221734
A39: 8 | B39: 170 | C39: 910 | D39: =C39+D177 -> 1906.294378 | E39: 2844.410981 | F39: 3607.994263 | G39: 4037.055346 | H39: 4240.677554 | I39: 4429.755319 | J39: 4597.016419 | K39: 4677.010858 | M39: R8 | N39: 3767.010858 | O39: =C23*C27 -> 3669.989931 | Q39: R8 | R39: =AI39+AH40 -> 203.6222086 | S39: 222.8509013 | U39: 8 | V39: 0.0466 | W39: 141.4422969 | X39: 154.7991429 | AB39: 996.2943776 | AC39: 938.1166037 | AD39: 763.5832821 | AE39: 429.0610823 | AF39: 203.6222086 | AG39: 189.0777651 | AH39: 167.2610999 | AI39: 79.99443908
A40: 9 | B40: 186 | C40: =B40+C178 -> 949.5832821 | D40: =C40+D178 -> 2134.955425 | E40: 3153.066468 | F40: 3960.28308 | G40: 4512.971932 | H40: 4774.771914 | I40: 5000.210788 | J40: 5123.838558 | K40: 5232.921884 | M40: R9 | N40: 5046.921884 | O40: =B24*B27 -> 4999.47569 | Q40: R9 | R40: =AI40 -> 109.083326 | S40: 93.21757791 | U40: 9 | V40: 0.0468 | W40: 72.274475 | X40: 61.76243199 | AA40: =C178 -> 763.5832821 | AB40: 1185.372143 | AC40: 1018.111043 | AD40: 807.2166125 | AE40: 552.6888518 | AF40: 261.7999824 | AG40: 225.4388738 | AH40: 123.6277695 | AI40: 109.083326
M41: Total | N41: =SUM(N31:N40) -> 16878.82665 | O41: =SUM(O31:O40) -> 16675.52971 | Q41: Total | R41: =SUM(R31:R40) -> 16878.82665 | S41: =SUM(S31:S40) -> 16675.52971 | W41: =SUM(W32:W40) -> 14976.85635 | X41: =SUM(X32:X40) -> 14808.42262
A42: F Bootstrap | B42: =SUM(C126:C134)/SUM(B126:B134) -> 5.349106004 | C42: =SUM(D126:D133)/SUM(C126:C133) -> 2.173985409 | D42: =SUM(E126:E132)/SUM(D126:D132) -> 1.437533236 | E42: =SUM(F126:F131)/SUM(E126:E131) -> 1.236913792 | F42: =SUM(G126:G130)/SUM(F126:F130) -> 1.124250421 | G42: =SUM(H126:H129)/SUM(G126:G129) -> 1.067288167 | H42: =SUM(I126:I128)/SUM(H126:H128) -> 1.045902924 | I42: =SUM(J126:J127)/SUM(I126:I127) -> 1.031040693 | J42: =SUM(K126)/SUM(J126) -> 1.016964238 | K42: 1
A43: (Producto F ) -1 | B43: =PRODUCT(B42:K42)-1 -> 26.20901208 | C43: =PRODUCT(C42:K42)-1 -> 4.08664664 | D43: =PRODUCT(D42:K42)-1 -> 1.339779568 | E43: =PRODUCT(E42:K42)-1 -> 0.6276351112 | F43: =PRODUCT(F42:K42)-1 -> 0.3158840347 | G43: =PRODUCT(G42:K42)-1 -> 0.1704545626 | H43: =PRODUCT(H42:K42)-1 -> 0.0966621745 | I43: =PRODUCT(I42:K42)-1 -> 0.04853151268 | J43: =PRODUCT(J42:K42)-1 -> 0.01696423776 | K43: =K42-1 -> 0
A50: Paso 2 | B50: 0 | C50: 1 | D50: 2 | E50: 3 | F50: 4 | G50: 5 | H50: 6 | I50: 7 | J50: 8 | K50: 9
A51: 0 | B51: =C51/B$26 -> 187.5611917 | C51: =D51/C$26 -> 1038.952066 | D51: 2201.71116 | E51: 3214.039918 | F51: 3962.1154 | G51: 4474.477791 | H51: 4792.648677 | I51: 4993.302622 | J51: 5135 | K51: =K2 -> 5229
A52: 1 | B52: =C52/B$26 -> 210.8648023 | C52: 1168.037055 | D52: 2475.263588 | E52: 3613.369513 | F52: 4454.389913 | G52: 5030.410962 | H52: 5388.113108 | I52: 5613.697378 | J52: =J3 -> 5773
A53: 2 | B53: =C53/B$26 -> 211.9654835 | C53: 1174.134025 | D53: 2488.184077 | E53: 3632.230736 | F53: 4477.641132 | G53: 5056.66892 | H53: 5416.238215 | I53: =I4 -> 5643
A54: 3 | B54: =C54/B$26 -> 211.3691332 | C54: 1170.83068 | D54: 2481.183741 | E54: 3622.011703 | F54: 4465.043595 | G54: 5042.442328 | H54: =H5 -> 5401
A55: 4 | B55: =C55/B$26 -> 235.4534457 | C55: =D55/C$26 -> 1304.240188 | D55: =E55/D$26 -> 2763.90054 | E55: =F55/E$26 -> 4034.719371 | F55: =G55/F$26 -> 4973.80996 | G55: =G6 -> 5617
A56: 5 | B56: =C56/B$26 -> 235.2730874 | C56: =D56/C$26 -> 1303.241134 | D56: =E56/D$26 -> 2761.78338 | E56: =F56/E$26 -> 4031.628759 | F56: =F7 -> 4970
A57: 6 | B57: =C57/B$26 -> 196.9543124 | C57: =D57/C$26 -> 1090.983096 | D57: =E57/D$26 -> 2311.973514 | E57: =E8 -> 3375
A58: 7 | B58: =C58/B$26 -> 154.2769662 | C58: =D58/C$26 -> 854.5817569 | D58: =D9 -> 1811
A59: 8 | B59: =C59/B$26 -> 164.2815776 | C59: =C10 -> 910
A60: 9 | B60: =B11 -> 186
A65: Paso 3 | B65: 0 | C65: 1 | D65: 2 | E65: 3 | F65: 4 | G65: 5 | H65: 6 | I65: 7 | J65: 8 | K65: 9
A66: 0 | B66: =B51 -> 187.5611917 | C66: =C51-B51 -> 851.390874 | D66: =D51-C51 -> 1162.759094 | E66: =E51-D51 -> 1012.328758 | F66: =F51-E51 -> 748.0754821 | G66: =G51-F51 -> 512.3623909 | H66: 318.1708856 | I66: 200.6539454 | J66: 141.6973781 | K66: 94
A67: 1 | B67: 210.8648023 | C67: =C52-B52 -> 957.1722523 | D67: 1307.226533 | E67: 1138.105925 | F67: 841.0204008 | G67: 576.0210482 | H67: 357.7021465 | I67: 225.58427 | J67: 159.3026219
A68: 2 | B68: 211.9654835 | C68: 962.1685417 | D68: 1314.050051 | E68: 1144.046659 | F68: 845.4103957 | G68: 579.027788 | H68: 359.5692958 | I68: 226.7617846
A69: 3 | B69: 211.3691332 | C69: 959.4615464 | D69: 1310.353062 | E69: 1140.827962 | F69: 843.0318914 | G69: 577.3987329 | H69: 358.5576722
A70: 4 | B70: 235.4534457 | C70: 1068.786742 | D70: 1459.660353 | E70: 1270.818831 | F70: 939.0905887 | G70: 643.19004
A71: 5 | B71: 235.2730874 | C71: 1067.968047 | D71: 1458.542247 | E71: 1269.845378 | F71: 938.3712413
A72: 6 | B72: 196.9543124 | C72: 894.0287841 | D72: 1220.990418 | E72: 1063.026486
A73: 7 | B73: 154.2769662 | C73: 700.3047907 | D73: 956.4182431
A74: 8 | B74: 164.2815776 | C74: 745.7184224
A75: 9 | B75: =B60 -> 186
M78: REMUESTREO
A80: Paso 4 | B80: 0 | C80: 1 | D80: 2 | E80: 3 | F80: 4 | G80: 5 | H80: 6 | I80: 7 | J80: 8 | K80: 9 | M80: Id | N80: Muestra | O80: Aleatorio | P80: Bootstrap | R80: Factor de Escala
A81: 0 | B81: =((B2-B51)/SQRT(B51))*$B$92 -> 1.664146101 | C81: =(((C2-B2)-C66)/SQRT(C66))*$B$92 -> -1.753356373 | D81: =(((D2-C2)-D66)/SQRT(D66))*$B$92 -> -3.217348323 | E81: 0.2591647763 | F81: 3.340764675 | G81: 4.676339212 | H81: -3.199396611 | I81: 0.2047125014 | J81: -1.110776114 | K81: 1.159488221e-13 | M81: 0 | N81: =B81 -> 1.664146101 | O81: =INT(RAND()*54) -> 6 | P81: =LOOKUP(O81,$M$81:$M$135,$N$81:$N$135) -> -1.140937126 | R81: =N81*N81 -> 2.769382247
A82: 1 | B82: =((B3-B52)/SQRT(B52))*$B$92 -> 0.9478202457 | C82: =(((C3-B3)-C67)/SQRT(C67))*$B$92 -> -3.322871193 | D82: -1.306831465 | E82: -1.212954396 | F82: 3.621942133 | G82: 2.470937004 | H82: 0.08481935924 | I82: -0.1303781735 | J82: 1.047601177 | M82: 1 | N82: =B82 -> 0.9478202457 | O82: =INT(RAND()*54) -> 41 | P82: =LOOKUP(O82,$M$81:$M$135,$N$81:$N$135) -> 2.470937004 | R82: =N82*N82 -> 0.8983632181
A83: 2 | B83: -2.034621912 | C83: -1.441237377 | D83: 1.157612646 | E83: 2.044721891 | F83: 0.1100853962 | G83: -2.312922087 | H83: 0.8754625651 | I83: -0.06252840618 | M83: 2 | N83: -2.034621912 | O83: 27 | P83: 0.2591647763 | R83: 4.139686324
A84: 3 | B84: -0.3714536184 | C84: -1.454961132 | D84: 3.846407772 | E84: 4.068324455 | F84: -6.684915994 | G84: -2.952531138 | H84: 2.052415455 | M84: 3 | N84: -0.3714536184 | O84: 45 | P84: -3.199396611 | R84: 0.1379777906
A85: 4 | B85: -0.6003916769 | C85: 3.221749255 | D85: 0.7550895819 | E85: -1.207264584 | F85: -1.415360283 | G85: -1.520114744 | M85: 4 | N85: -0.6003916769 | O85: 36 | P85: 0.1100853962 | R85: 0.3604701657
A86: 5 | B86: -0.3443386259 | C86: -0.4526622039 | D86: 0.5650136565 | E86: -1.104589946 | F86: 1.235868169 | M86: 5 | N86: -0.3443386259 | O86: 41 | P86: 2.470937004 | R86: 0.1185690893
A87: 6 | B87: -1.140937126 | C87: 3.388564221 | D87: 0.1772048021 | E87: -2.806371656 | M87: 6 | N87: -1.140937126 | O87: 48 | P87: 2.052415455 | R87: 1.301737525
A88: 7 | B88: 1.763671167 | C88: 2.227723593 | D88: -2.614598723 | M88: 7 | N88: 1.763671167 | O88: 26 | P88: -2.614598723 | R88: 3.110535985
A89: 8 | B89: 0.5514573016 | C89: -0.2588325481 | M89: 8 | N89: 0.5514573016 | O89: 14 | P89: 3.221749255 | R89: 0.3041051555
A90: 9 | B90: 0 | M90: 9 | N90: 0 | O90: 22 | P90: 3.846407772 | R90: 0
M91: 10 | N91: =C81 -> -1.753356373 | O91: 31 | P91: -1.207264584 | R91: 3.074258572
B92: =SQRT(55/36) -> 1.236033081 | M92: 11 | N92: =C82 -> -3.322871193 | O92: 26 | P92: -2.614598723 | R92: 11.04147297
M93: 12 | N93: -1.441237377 | O93: 25 | P93: 0.1772048021 | R93: 2.077165177
M94: 13 | N94: -1.454961132 | O94: 39 | P94: 1.235868169 | R94: 2.116911896
A95: Paso 5 | B95: 0 | C95: 1 | D95: 2 | E95: 3 | F95: 4 | G95: 5 | H95: 6 | I95: 7 | J95: 8 | K95: 9 | M95: 14 | N95: 3.221749255 | O95: 11 | P95: -3.322871193 | R95: 10.37966826
A96: 0 | B96: =P81 -> -1.140937126 | C96: =P91 -> -1.207264584 | D96: =P100 -> 0.7550895819 | E96: =P108 -> 2.044721891 | F96: =P115 -> 2.052415455 | G96: =P121 -> 1.235868169 | H96: =P126 -> -2.806371656 | I96: =P130 -> 0.1772048021 | J96: =P133 -> -1.140937126 | K96: =P135 -> -0.6003916769 | M96: 15 | N96: -0.4526622039 | O96: 20 | P96: -1.306831465 | R96: 0.2049030708
A97: 1 | B97: =P82 -> 2.470937004 | C97: =P92 -> -2.614598723 | D97: =P101 -> -0.1303781735 | E97: =P109 -> -0.3443386259 | F97: =P116 -> 2.227723593 | G97: =P122 -> -2.952531138 | H97: =P127 -> -0.06252840618 | I97: =P131 -> 0.2047125014 | J97: =P134 -> 3.340764675 | M97: 16 | N97: 3.388564221 | O97: 39 | P97: 1.235868169 | R97: 11.48236748
A98: 2 | B98: 0.2591647763 | C98: 0.1772048021 | D98: 2.052415455 | E98: -2.614598723 | F98: -3.217348323 | G98: -2.312922087 | H98: 0.5650136565 | I98: 3.388564221 | M98: 17 | N98: 2.227723593 | O98: 1 | P98: 0.9478202457 | R98: 4.962752408
A99: 3 | B99: -3.199396611 | C99: 1.235868169 | D99: -1.454961132 | E99: -3.322871193 | F99: 3.621942133 | G99: 1.047601177 | H99: -2.312922087 | M99: 18 | N99: -0.2588325481 | O99: 29 | P99: 2.044721891 | R99: 0.06699428795
A100: 4 | B100: 0.1100853962 | C100: -3.322871193 | D100: 4.068324455 | E100: 0.2591647763 | F100: 1.047601177 | G100: -1.454961132 | M100: 19 | N100: =D81 -> -3.217348323 | O100: 23 | P100: 0.7550895819 | R100: 10.35133023
A101: 5 | B101: 2.470937004 | C101: -1.306831465 | D101: 2.470937004 | E101: -2.034621912 | F101: -3.322871193 | M101: 20 | N101: =D82 -> -1.306831465 | O101: 50 | P101: -0.1303781735 | R101: 1.707808478
A102: 6 | B102: 2.052415455 | C102: 1.235868169 | D102: 1.047601177 | E102: -2.952531138 | M102: 21 | N102: 1.157612646 | O102: 48 | P102: 2.052415455 | R102: 1.340067037
A103: 7 | B103: -2.614598723 | C103: 0.9478202457 | D103: -0.1303781735 | M103: 22 | N103: 3.846407772 | O103: 13 | P103: -1.454961132 | R103: 14.79485275
A104: 8 | B104: 3.221749255 | C104: 2.044721891 | M104: 23 | N104: 0.7550895819 | O104: 30 | P104: 4.068324455 | R104: 0.5701602766
A105: 9 | B105: 3.846407772 | M105: 24 | N105: 0.5650136565 | O105: 41 | P105: 2.470937004 | R105: 0.319240432
M106: 25 | N106: 0.1772048021 | O106: 53 | P106: 1.047601177 | R106: 0.0314015419
M107: 26 | N107: -2.614598723 | O107: 50 | P107: -0.1303781735 | R107: 6.836126484
M108: 27 | N108: =E81 -> 0.2591647763 | O108: 29 | P108: 2.044721891 | R108: 0.06716638125
M109: 28 | N109: =E82 -> -1.212954396 | O109: 5 | P109: -0.3443386259 | R109: 1.471258366
A110: Paso 6 | B110: 0 | C110: 1 | D110: 2 | E110: 3 | F110: 4 | G110: 5 | H110: 6 | I110: 7 | J110: 8 | K110: 9 | M110: 29 | N110: 2.044721891 | O110: 26 | P110: -2.614598723 | R110: 4.180887611
A111: 0 | B111: =B96*(SQRT(B66))+B66 -> 171.9357176 | C111: =C96*(SQRT(C66))+C66 -> 816.16458 | D111: 1188.507085 | E111: 1077.385908 | F111: 804.2110327 | G111: 540.3367901 | H111: 268.1126654 | I111: 203.1640934 | J111: 128.1160381 | K111: 88.17898672 | M111: 30 | N111: 4.068324455 | O111: 11 | P111: -3.322871193 | R111: 16.55126387
A112: 1 | B112: =B97*(SQRT(B67))+B67 -> 246.7457347 | C112: 876.2812727 | D112: 1302.512634 | E112: 1126.489377 | F112: 905.6251686 | G112: 505.1590062 | H112: 356.5195458 | I112: 228.6589419 | J112: 201.4681309 | M112: 31 | N112: -1.207264584 | O112: 27 | P112: 0.2591647763 | R112: 1.457487776
A113: 2 | B113: 215.7386724 | C113: 967.6652294 | D113: 1388.449759 | E113: 1055.611103 | F113: 751.8629629 | G113: 523.3719525 | H113: 370.2832613 | I113: 277.7888572 | M113: 32 | N113: -1.104589946 | O113: 2 | P113: -2.034621912 | R113: 1.220118949
A114: 3 | B114: 164.8545789 | C114: 997.7427808 | D114: 1257.685216 | E114: 1028.594184 | F114: 948.1950228 | G114: 602.57167 | H114: 314.7610604 | M114: 33 | N114: -2.806371656 | O114: 43 | P114: -2.952531138 | R114: 7.875721869
A115: 4 | B115: 237.1426503 | C115: 960.1544265 | D115: 1615.092729 | E115: 1280.057679 | F115: 971.193892 | G115: 606.290492 | M115: 34 | N115: =F81 -> 3.340764675 | O115: 48 | P115: 2.052415455 | R115: 11.16070861
A116: 5 | B116: 273.1738369 | C116: 1025.261081 | D116: 1552.909471 | E116: 1197.341851 | F116: 836.5822404 | M116: 35 | N116: =F82 -> 3.621942133 | O116: 17 | P116: 2.227723593 | R116: 13.11846482
A117: 6 | B117: 225.7579954 | C117: 930.9816305 | D117: 1257.596403 | E117: 966.761904 | M117: 36 | N117: 0.1100853962 | O117: 19 | P117: -3.217348323 | R117: 0.01211879446
A118: 7 | B118: 121.8014854 | C118: 725.3872162 | D118: 952.3861661 | M118: 37 | N118: -6.684915994 | O118: 35 | P118: 3.621942133 | R118: 44.68810185
A119: 8 | B119: 205.5755031 | C119: 801.5553717 | M119: 38 | N119: -1.415360283 | O119: 53 | P119: 1.047601177 | R119: 2.003244732
A120: 9 | B120: 238.4580081 | M120: 39 | N120: 1.235868169 | O120: 11 | P120: -3.322871193 | R120: 1.527370132
M121: 40 | N121: =G81 -> 4.676339212 | O121: 39 | P121: 1.235868169 | R121: 21.86814843
M122: 41 | N122: =G82 -> 2.470937004 | O122: 43 | P122: -2.952531138 | R122: 6.10552968
M123: 42 | N123: -2.312922087 | O123: 42 | P123: -2.312922087 | R123: 5.349608581
M124: 43 | N124: -2.952531138 | O124: 53 | P124: 1.047601177 | R124: 8.717440122
A125: Paso 7 | B125: 0 | C125: 1 | D125: 2 | E125: 3 | F125: 4 | G125: 5 | H125: 6 | I125: 7 | J125: 8 | K125: 9 | M125: 44 | N125: -1.520114744 | O125: 13 | P125: -1.454961132 | R125: 2.310748835
A126: 0 | B126: =B111 -> 171.9357176 | C126: =C111+B126 -> 988.1002976 | D126: =D111+C126 -> 2176.607383 | E126: =E111+D126 -> 3253.993291 | F126: 4058.204324 | G126: 4598.541114 | H126: 4866.653779 | I126: 5069.817873 | J126: 5197.933911 | K126: 5286.112898 | M126: 45 | N126: =H81 -> -3.199396611 | O126: 33 | P126: -2.806371656 | R126: 10.23613868
A127: 1 | B127: =B112 -> 246.7457347 | C127: =C112+B127 -> 1123.027007 | D127: 2425.539641 | E127: 3552.029018 | F127: 4457.654187 | G127: 4962.813193 | H127: 5319.332739 | I127: 5547.99168 | J127: 5749.459811 | M127: 46 | N127: =H82 -> 0.08481935924 | O127: 51 | P127: -0.06252840618 | R127: 0.007194323702
A128: 2 | B128: 215.7386724 | C128: 1183.403902 | D128: 2571.853661 | E128: 3627.464764 | F128: 4379.327727 | G128: 4902.699679 | H128: 5272.98294 | I128: 5550.771798 | M128: 47 | N128: 0.8754625651 | O128: 24 | P128: 0.5650136565 | R128: 0.7664347029
A129: 3 | B129: 164.8545789 | C129: 1162.59736 | D129: 2420.282575 | E129: 3448.876759 | F129: 4397.071782 | G129: 4999.643452 | H129: 5314.404512 | M129: 48 | N129: 2.052415455 | O129: 42 | P129: -2.312922087 | R129: 4.212409198
A130: 4 | B130: 237.1426503 | C130: 1197.297077 | D130: 2812.389806 | E130: 4092.447484 | F130: 5063.641376 | G130: 5669.931868 | M130: 49 | N130: =I81 -> 0.2047125014 | O130: 25 | P130: 0.1772048021 | R130: 0.04190720825
A131: 5 | B131: 273.1738369 | C131: 1298.434918 | D131: 2851.344389 | E131: 4048.686239 | F131: 4885.26848 | M131: 50 | N131: =I82 -> -0.1303781735 | O131: 49 | P131: 0.2047125014 | R131: 0.01699846813
A132: 6 | B132: 225.7579954 | C132: 1156.739626 | D132: 2414.336029 | E132: 3381.097933 | M132: 51 | N132: -0.06252840618 | O132: 16 | P132: 3.388564221 | R132: 0.00390980158
A133: 7 | B133: 121.8014854 | C133: 847.1887015 | D133: 1799.574868 | M133: 52 | N133: =J81 -> -1.110776114 | O133: 6 | P133: -1.140937126 | R133: 1.233823576
A134: 8 | B134: 205.5755031 | C134: 1007.130875 | M134: 53 | N134: =J82 -> 1.047601177 | O134: 34 | P134: 3.340764675 | R134: 1.097468225
A135: 9 | B135: 238.4580081 | M135: 54 | N135: =K81 -> 1.159488221e-13 | O135: 4 | P135: -0.6003916769 | R135: 1.344412934e-26
R136: =(SUM(R81:R135))/(55-19) -> 7.272221734
A139: Paso 9 | B139: 0 | C139: 1 | D139: 2 | E139: 3 | F139: 4 | G139: 5 | H139: 6 | I139: 7 | J139: 8 | K139: 9 | N139: Bootstrap | O139: Chain Ladder | R139: Bootstrap | S139: Chain Ladder | U139: Plazo | V139: Tipo de interés | W139: Bootstrap | X139: Chain Ladder
A140: 0 | B140: =B2 -> 206 | C140: 1016 | D140: 2090 | E140: 3109 | F140: 3931 | G140: 4529 | H140: 4801 | I140: 5004 | J140: 5135 | K140: 5229 | M140: R0 | N140: =K140*K152 -> 0 | O140: =K15*K27 -> 0 | Q140: R0 | R140: 0 | S140: 0 | U140: 0
A141: 1 | B141: =B3 -> 222 | C141: 1096 | D141: 2365 | E141: 3470 | F141: 4396 | G141: 5020 | H141: 5379 | I141: 5603 | J141: 5773 | K141: =J141+N141 -> 5870.934545 | M141: R1 | N141: =J141*J152 -> 97.93454459 | O141: =J16*J27 -> 105.6790652 | Q141: R1 | R141: =AI141+AH142+AG143+AF144+AE145+AD146+AC147+AB148+AA149 -> 4985.718272 | S141: =AI16+AH17+AG18+AF19+AE20+AD21+AC22+AB23+AA24 -> 5015.014579 | U141: 1 | V141: 0.0437 | W141: =(R141/(1+V141)^U141) -> 4776.964905 | X141: =(S141/(1+V141)^U141) -> 4805.034568 | AI141: =K141-J141 -> 97.93454459
A142: 2 | B142: =B4 -> 188 | C142: 1114 | D142: 2462 | E142: 3662 | F142: 4510 | G142: 5044 | H142: 5417 | I142: 5643 | J142: =$K142/(1+J$152) -> 5818.162632 | K142: =I142+N142 -> 5916.863326 | M142: R2 | N142: =I142*I152 -> 273.8633261 | O142: =I17*I27 -> 266.3648501 | Q142: R2 | R142: =AI142+AH143+AG144+AF145+AE146+AD147+AC148+AB149 -> 4094.297591 | S142: =AI17+AH18+AG19+AF20+AE21+AD22+AC23+AB24 -> 4110.01799 | U142: 2 | V142: 0.0451 | W142: =(R142/(1+V142)^U142) -> 3748.553473 | X142: =(S142/(1+V142)^U142) -> 3762.946358 | AH142: =J142-I142 -> 175.1626318 | AI142: 98.70069421
A143: 3 | B143: =B5 -> 207 | C143: 1130 | D143: 2553 | E143: 3805 | F143: 4491 | G143: 5011 | H143: 5401 | I143: =$K143/(1+I$152) -> 5648.92169 | J143: 5824.268135 | K143: =H143+N143 -> 5923.072404 | M143: R3 | N143: =H143*H152 -> 522.0724045 | O143: =H18*H27 -> 491.7392567 | Q143: R3 | R143: =AI143+AH144+AG145+AF146+AE147+AD148+AC149 -> 2903.216139 | S143: =AI18+AH19+AG20+AF21+AE22+AD23+AC24 -> 2950.180234 | U143: 3 | V143: 0.0454 | W143: 2541.159249 | X143: 2582.266503 | AG143: =I143-H143 -> 247.9216899 | AH143: =J143-I143 -> 175.3464452 | AI143: 98.80426942
A144: 4 | B144: =B6 -> 228 | C144: 1382 | D144: 2865 | E144: 4101 | F144: 5005 | G144: 5617 | H144: =$K144/(1+H$152) -> 5994.957637 | I144: 6270.143719 | J144: 6464.773326 | K144: =G144+N144 -> 6574.443278 | M144: R4 | N144: =G144*G152 -> 957.443278 | O144: =G19*G27 -> 947.1834359 | Q144: R4 | R144: =AI144+AH145+AG146+AF147+AE148+AD149 -> 1950.528317 | S144: =AI19+AH20+AG21+AF22+AE23+AD24 -> 1958.77431 | U144: 4 | V144: 0.0457 | W144: 1631.262406 | X144: 1638.15868 | AF144: =H144-G144 -> 377.9576367 | AG144: =I144-H144 -> 275.1860818 | AH144: =J144-I144 -> 194.6296076 | AI144: 109.6699518
A145: 5 | B145: =B7 -> 231 | C145: =C7 -> 1287 | D145: =D7 -> 2763 | E145: =E7 -> 4001 | F145: =F7 -> 4970 | G145: =$K145/(1+G$152) -> 5587.524592 | H145: 5963.498883 | I145: 6237.240916 | J145: 6430.849198 | K145: =F145+N145 -> 6539.943652 | M145: R5 | N145: =F145*F152 -> 1569.943652 | O145: =F20*F27 -> 1589.155243 | Q145: R5 | R145: =AI145+AH146+AG147+AF148+AE149 -> 1193.052435 | S145: =AI20+AH21+AG22+AF23+AE24 -> 1218.529694 | U145: 5 | V145: 0.046 | W145: 952.7985964 | X145: 973.1453107 | AE145: =G145-F145 -> 617.5245922 | AF145: =H145-G145 -> 375.9742906 | AG145: =I145-H145 -> 273.742033 | AH145: =J145-I145 -> 193.6082818 | AI145: 109.0944548
A146: 6 | B146: =B8 -> 184 | C146: =C8 -> 1160 | D146: =D8 -> 2386 | E146: =E8 -> 3375 | F146: =$K146/(1+F$152) -> 4174.584048 | G146: =$K146/(1+G$152) -> 4693.277873 | H146: 5009.079941 | I146: 5239.011354 | J146: 5401.633899 | K146: =E146+N146 -> 5493.2685 | M146: R6 | N146: =E146*E152 -> 2118.2685 | O146: =E21*E27 -> 2115.869887 | Q146: R6 | R146: =AI146+AH147+AG148+AF149 -> 701.7704414 | S146: =AI21+AH22+AG23+AF24 -> 706.5314375 | U146: 6 | V146: 0.0462 | W146: 535.1885058 | X146: 538.8193661 | AD146: =F146-E146 -> 799.5840481 | AE146: =G146-F146 -> 518.6938253 | AF146: =H146-G146 -> 315.8020676 | AG146: =I146-H146 -> 229.9314134 | AH146: =J146-I146 -> 162.6225442 | AI146: 91.63460175
A147: 7 | B147: =B9 -> 172 | C147: =C9 -> 920 | D147: =D9 -> 1811 | E147: =$K147/(1+E$152) -> 2603.37269 | F147: =$K147/(1+F$152) -> 3220.147586 | G147: =$K147/(1+G$152) -> 3620.252279 | H147: 3863.852421 | I147: 4041.214543 | J147: 4166.656644 | K147: =D147+N147 -> 4237.340798 | M147: R7 | N147: =D147*D152 -> 2426.340798 | O147: =D22*D27 -> 2490.072354 | Q147: R7 | R147: =AI147+AH148+AG149 -> 419.5492311 | S147: =AI22+AH23+AG24 -> 400.4129895 | U147: 7 | V147: 0.0464 | W147: 305.4209422 | X147: 291.4902554 | AC147: =E147-D147 -> 792.3726901 | AD147: =F147-E147 -> 616.774896 | AE147: =G147-F147 -> 400.1046931 | AF147: =H147-G147 -> 243.6001417 | AG147: =I147-H147 -> 177.3621221 | AH147: =J147-I147 -> 125.4421009 | AI147: 70.68415397
A148: 8 | B148: =B10 -> 170 | C148: =C10 -> 910 | D148: =$K148/(1+D$152) -> 1978.326722 | E148: =$K148/(1+E$152) -> 2843.910414 | F148: =$K148/(1+F$152) -> 3517.672014 | G148: =$K148/(1+G$152) -> 3954.744243 | H148: 4220.851736 | I148: 4414.60117 | J148: 4551.633451 | K148: =C148+N148 -> 4628.848443 | M148: R8 | N148: =C148*C152 -> 3718.848443 | O148: =C23*C27 -> 3669.989931 | Q148: R8 | R148: =AI148+AH149 -> 227.0370099 | S148: =AI23+AH24 -> 222.8509013 | U148: 8 | V148: 0.0466 | W148: 157.7069437 | X148: 154.7991429 | AB148: =D148-C148 -> 1068.326722 | AC148: =E148-D148 -> 865.5836921 | AD148: =F148-E148 -> 673.7616003 | AE148: =G148-F148 -> 437.0722286 | AF148: =H148-G148 -> 266.1074929 | AG148: =I148-H148 -> 193.7494344 | AH148: =J148-I148 -> 137.0322806 | AI148: 77.21499205
A149: 9 | B149: =B11 -> 186 | C149: =$K149/(1+C$152) -> 994.9337167 | D149: =$K149/(1+D$152) -> 2162.971382 | E149: =$K149/(1+E$152) -> 3109.34325 | F149: =$K149/(1+F$152) -> 3845.989551 | G149: =$K149/(1+G$152) -> 4323.855371 | H149: 4614.799676 | I149: 4826.632472 | J149: 4976.45449 | K149: =B149+N149 -> 5060.876247 | M149: R9 | N149: =B149*B152 -> 4874.876247 | O149: =B24*B27 -> 4999.47569 | Q149: R9 | R149: =AI149 -> 84.42175717 | S149: =AI24 -> 93.21757791 | U149: 9 | V149: 0.0468 | W149: 55.93465474 | X149: 61.76243199 | AA149: =C149-B149 -> 808.9337167 | AB149: =D149-C149 -> 1168.037666 | AC149: =E149-D149 -> 946.371868 | AD149: =F149-E149 -> 736.6463001 | AE149: =G149-F149 -> 477.8658207 | AF149: =H149-G149 -> 290.9443044 | AG149: =I149-H149 -> 211.8327965 | AH149: =J149-I149 -> 149.8220179 | AI149: 84.42175717
M150: Total | N150: =SUM(N140:N149) -> 16559.59119 | O150: =SUM(O140:O149) -> 16675.52971 | Q150: Total | R150: =SUM(R140:R149) -> 16559.59119 | S150: =SUM(S140:S149) -> 16675.52971 | W150: =SUM(W141:W149) -> 14704.98968 | X150: =SUM(X141:X149) -> 14808.42262
A151: Paso 8: F Bootstrap | B151: =SUM(C126:C134)/SUM(B126:B134) -> 5.349106004 | C151: =SUM(D126:D133)/SUM(C126:C133) -> 2.173985409 | D151: =SUM(E126:E132)/SUM(D126:D132) -> 1.437533236 | E151: =SUM(F126:F131)/SUM(E126:E131) -> 1.236913792 | F151: =SUM(G126:G130)/SUM(F126:F130) -> 1.124250421 | G151: =SUM(H126:H129)/SUM(G126:G129) -> 1.067288167 | H151: =SUM(I126:I128)/SUM(H126:H128) -> 1.045902924 | I151: =SUM(J126:J127)/SUM(I126:I127) -> 1.031040693 | J151: =SUM(K126)/SUM(J126) -> 1.016964238 | K151: 1
A152: (Producto F ) -1 | B152: =PRODUCT(B151:K151)-1 -> 26.20901208 | C152: =PRODUCT(C151:K151)-1 -> 4.08664664 | D152: =PRODUCT(D151:K151)-1 -> 1.339779568 | E152: =PRODUCT(E151:K151)-1 -> 0.6276351112 | F152: =PRODUCT(F151:K151)-1 -> 0.3158840347 | G152: =PRODUCT(G151:K151)-1 -> 0.1704545626 | H152: =PRODUCT(H151:K151)-1 -> 0.0966621745 | I152: =PRODUCT(I151:K151)-1 -> 0.04853151268 | J152: =PRODUCT(J151:K151)-1 -> 0.01696423776 | K152: =K151-1 -> 0
A155: Paso 10 | B155: 0 | C155: 1 | D155: 2 | E155: 3 | F155: 4 | G155: 5 | H155: 6 | I155: 7 | J155: 8 | K155: 9
A156: 0
A157: 1 | K157: =K141-J141 -> 97.93454459
A158: 2 | J158: =J142-I142 -> 175.1626318 | K158: 98.70069421
A159: 3 | I159: =I143-H143 -> 247.9216899 | J159: 175.3464452 | K159: 98.80426942
A160: 4 | H160: =H144-G144 -> 377.9576367 | I160: 275.1860818 | J160: 194.6296076 | K160: 109.6699518
A161: 5 | G161: =G145-F145 -> 617.5245922 | H161: 375.9742906 | I161: 273.742033 | J161: 193.6082818 | K161: 109.0944548
A162: 6 | F162: =F146-E146 -> 799.5840481 | G162: =G146-F146 -> 518.6938253 | H162: 315.8020676 | I162: 229.9314134 | J162: 162.6225442 | K162: 91.63460175
A163: 7 | E163: =E147-D147 -> 792.3726901 | F163: =F147-E147 -> 616.774896 | G163: =G147-F147 -> 400.1046931 | H163: 243.6001417 | I163: 177.3621221 | J163: 125.4421009 | K163: 70.68415397
A164: 8 | D164: =D148-C148 -> 1068.326722 | E164: =E148-D148 -> 865.5836921 | F164: =F148-E148 -> 673.7616003 | G164: =G148-F148 -> 437.0722286 | H164: 266.1074929 | I164: 193.7494344 | J164: 137.0322806 | K164: 77.21499205
A165: 9 | C165: =C149-B149 -> 808.9337167 | D165: =D149-C149 -> 1168.037666 | E165: =E149-D149 -> 946.371868 | F165: =F149-E149 -> 736.6463001 | G165: =G149-F149 -> 477.8658207 | H165: 290.9443044 | I165: 211.8327965 | J165: 149.8220179 | K165: 84.42175717
A168: Paso 11 | B168: 0 | C168: 1 | D168: 2 | E168: 3 | F168: 4 | G168: 5 | H168: 6 | I168: 7 | J168: 8 | K168: 9
A169: 0
A170: 1 | K170: =(ranpoi(K157/$R$136))*$R$136 -> 87.26666081
A171: 2 | J171: =(ranpoi(J158/$R$136))*$R$136 -> 159.9888782 | K171: 123.6277695
A172: 3 | I172: =(ranpoi(I159/$R$136))*$R$136 -> 305.4333128 | J172: 225.4388738 | K172: 79.99443908
A173: 4 | H173: =(ranpoi(H160/$R$136))*$R$136 -> 501.7832997 | I173: 247.255539 | J173: 254.5277607 | K173: 116.3555478
A174: 5 | G174: =(ranpoi(G161/$R$136))*$R$136 -> 567.2332953 | H174: 363.6110867 | I174: 232.7110955 | J174: 189.0777651 | K174: 116.3555478
A175: 6 | F175: =(ranpoi(F162/$R$136))*$R$136 -> 778.1277256 | G175: =(ranpoi(G162/$R$136))*$R$136 -> 581.7777388 | H175: 290.8888694 | I175: 261.7999824 | J175: 189.0777651 | K175: 109.083326
A176: 7 | E176: =(ranpoi(E163/$R$136))*$R$136 -> 770.8555039 | F176: =(ranpoi(F163/$R$136))*$R$136 -> 581.7777388 | G176: =(ranpoi(G163/$R$136))*$R$136 -> 349.0666433 | H176: 232.7110955 | I176: 196.3499868 | J176: 79.99443908 | K176: 72.72221734
A177: 8 | D177: =(ranpoi(D164/$R$136))*$R$136 -> 996.2943776 | E177: =(ranpoi(E164/$R$136))*$R$136 -> 938.1166037 | F177: =(ranpoi(F164/$R$136))*$R$136 -> 763.5832821 | G177: =(ranpoi(G164/$R$136))*$R$136 -> 429.0610823 | H177: 203.6222086 | I177: 189.0777651 | J177: 167.2610999 | K177: 79.99443908
A178: 9 | C178: =(ranpoi(C165/$R$136))*$R$136 -> 763.5832821 | D178: =(ranpoi(D165/$R$136))*$R$136 -> 1185.372143 | E178: =(ranpoi(E165/$R$136))*$R$136 -> 1018.111043 | F178: =(ranpoi(F165/$R$136))*$R$136 -> 807.2166125 | G178: =(ranpoi(G165/$R$136))*$R$136 -> 552.6888518 | H178: 261.7999824 | I178: 225.4388738 | J178: 123.6277695 | K178: 109.083326

Sheet Bootstrap
A1: Contador | J1: Graf. | L1: R0 | M1: R1 | N1: R2 | O1: R3 | P1: R4 | Q1: R5 | R1: R6 | S1: R7 | T1: R8 | U1: R9 | V1: Total | X1: R0 | Y1: R1 | Z1: R2 | AA1: R3 | AB1: R4 | AC1: R5 | AD1: R6 | AE1: R7 | AF1: R8 | AG1: R9 | AH1: Total
A2: 10000 | B2: Total Reservas | G2: Intervalo Bootstrap (90%) | J2: =ROUND(V2/100,0) -> 171 | L2: 0 | M2: 99.42432165 | N2: 257.6909787 | O2: 491.0490625 | P2: 917.4272706 | Q2: 1546.744153 | R2: 2133.519633 | S2: 2513.548847 | T2: 3812.537058 | U2: 5911.374344 | V2: 17080.6514 | X2: 0 | Y2: 4864.494943 | Z2: 4165.023263 | AA2: 3105.801645 | AB2: 1890.223476 | AC2: 1161.606534 | AD2: 623.1362917 | AE2: 386.0620952 | AF2: 241.0968537 | AG2: 93.16509398 | AH2: 16169.18452
B3: =Triangulos!O139 -> Chain Ladder | C3: =Triangulos!N139 -> Bootstrap | E3: Estimadores B | F3: Error muestreo | G3: Inferior | H3: Superior | J3: =ROUND(V3/100,0) -> 171 | L3: 0 | M3: 122.0547563 | N3: 339.6444222 | O3: 456.8793712 | P3: 905.5048345 | Q3: 1511.240469 | R3: 2161.240552 | S3: 2337.30143 | T3: 3623.721882 | U3: 5048.652387 | V3: 17087.55969 | X3: 0 | Y3: 4979.557936 | Z3: 4097.729254 | AA3: 2995.19379 | AB3: 1905.326867 | AC3: 1142.797539 | AD3: 683.6549304 | AE3: 411.5255277 | AF3: 235.3236923 | AG3: 63.0196746 | AH3: 17043.9553
A4: =Triangulos!M140 -> R0 | B4: =Triangulos!O140 -> 0 | C4: =Triangulos!N140 -> 0 | E4: =AVERAGE(L:L) -> 0 | F4: =STDEVP(L:L) -> 0 | G4: =PERCENTILE(L:L,0.05) -> 0 | H4: =PERCENTILE(L:L,0.95) -> 0 | J4: 169 | L4: 0 | M4: 126.566053 | N4: 334.7155762 | O4: 539.332651 | P4: 886.7116333 | Q4: 1424.870985 | R4: 2054.479753 | S4: 2364.696286 | T4: 3752.221004 | U4: 4700.012909 | V4: 16909.29007 | X4: 0 | Y4: 5074.921175 | Z4: 4034.47092 | AA4: 3159.15078 | AB4: 2025.268341 | AC4: 1159.850387 | AD4: 720.7493569 | AE4: 409.6268303 | AF4: 216.9472979 | AG4: 87.88748958 | AH4: 15827.84031
A5: =Triangulos!M141 -> R1 | B5: =Triangulos!O141 -> 105.6790652 | C5: =Triangulos!N141 -> 97.93454459 | E5: =AVERAGE(M:M) -> 105.7927666 | F5: =STDEVP(M:M) -> 24.30564644 | G5: =PERCENTILE(M:M,0.05) -> 70.31764533 | H5: =PERCENTILE(M:M,0.95) -> 147.9880607 | J5: 164 | L5: 0 | M5: 83.67111221 | N5: 244.5178858 | O5: 497.2762591 | P5: 965.4724534 | Q5: 1580.152333 | R5: 2097.703997 | S5: 2488.528121 | T5: 3497.880435 | U5: 4807.615589 | V5: 16387.04423 | X5: 0 | Y5: 4940.518014 | Z5: 4297.092991 | AA5: 2955.114763 | AB5: 2080.995332 | AC5: 1220.520471 | AD5: 647.4906459 | AE5: 408.51913 | AF5: 229.7823814 | AG5: 69.81035859 | AH5: 16676.99997
A6: =Triangulos!M142 -> R2 | B6: =Triangulos!O142 -> 266.3648501 | C6: =Triangulos!N142 -> 273.8633261 | E6: =AVERAGE(N:N) -> 266.5611092 | F6: =STDEVP(N:N) -> 32.49463475 | G6: =PERCENTILE(N:N,0.05) -> 214.2618332 | H6: =PERCENTILE(N:N,0.95) -> 320.5143485 | J6: 167 | L6: 0 | M6: 127.1989775 | N6: 289.6820059 | O6: 425.7374614 | P6: 904.2506864 | Q6: 1603.339568 | R6: 2145.081342 | S6: 2453.39596 | T6: 3676.79038 | U6: 4991.666 | V6: 16678.90148 | X6: 0 | Y6: 5065.381755 | Z6: 4150.94377 | AA6: 2972.426075 | AB6: 1850.367444 | AC6: 1129.535226 | AD6: 679.350451 | AE6: 373.0106338 | AF6: 234.4534102 | AG6: 104.8286085 | AH6: 16861.5202
A7: =Triangulos!M143 -> R3 | B7: =Triangulos!O143 -> 491.7392567 | C7: =Triangulos!N143 -> 522.0724045 | E7: =AVERAGE(O:O) -> 492.7895706 | F7: =STDEVP(O:O) -> 38.32035299 | G7: =PERCENTILE(O:O,0.05) -> 430.0773771 | H7: =PERCENTILE(O:O,0.95) -> 556.2132667 | J7: 170 | L7: 0 | M7: 82.24945156 | N7: 281.6861966 | O7: 466.4866546 | P7: 964.6930058 | Q7: 1540.675724 | R7: 2143.216343 | S7: 2495.379467 | T7: 3535.453688 | U7: 5193.586558 | V7: 17000.51457 | X7: 0 | Y7: 5185.87598 | Z7: 4165.812765 | AA7: 2949.353354 | AB7: 1952.043743 | AC7: 1285.722625 | AD7: 713.5463834 | AE7: 368.117747 | AF7: 238.1702159 | AG7: 111.8274368 | AH7: 16806.26874
A8: =Triangulos!M144 -> R4 | B8: =Triangulos!O144 -> 947.1834359 | C8: =Triangulos!N144 -> 957.443278 | E8: =AVERAGE(P:P) -> 948.1622235 | F8: =STDEVP(P:P) -> 49.67560726 | G8: =PERCENTILE(P:P,0.05) -> 867.5714781 | H8: =PERCENTILE(P:P,0.95) -> 1029.91927 | J8: 163 | L8: 0 | M8: 141.4415453 | N8: 308.4763251 | O8: 484.4604523 | P8: 1032.683646 | Q8: 1717.814222 | R8: 2082.004074 | S8: 2445.696012 | T8: 3611.213184 | U8: 5080.118423 | V8: 16265.23979 | X8: 0 | Y8: 4917.096047 | Z8: 4125.750146 | AA8: 2920.051403 | AB8: 1904.270823 | AC8: 1252.590505 | AD8: 730.3595218 | AE8: 391.5737199 | AF8: 228.702739 | AG8: 95.76497695 | AH8: 17162.25163
A9: =Triangulos!M145 -> R5 | B9: =Triangulos!O145 -> 1589.155243 | C9: =Triangulos!N145 -> 1569.943652 | E9: =AVERAGE(Q:Q) -> 1588.955656 | F9: =STDEVP(Q:Q) -> 60.10625076 | G9: =PERCENTILE(Q:Q,0.05) -> 1490.841768 | H9: =PERCENTILE(Q:Q,0.95) -> 1688.14245 | J9: 165 | L9: 0 | M9: 120.3756205 | N9: 303.3245758 | O9: 478.6806946 | P9: 997.8448859 | Q9: 1714.244701 | R9: 1984.913525 | S9: 2563.524632 | T9: 3602.424824 | U9: 4756.78607 | V9: 16548.95464 | X9: 0 | Y9: 5107.504433 | Z9: 4192.604939 | AA9: 2947.87646 | AB9: 1953.022786 | AC9: 1161.713502 | AD9: 819.6655374 | AE9: 420.0082969 | AF9: 210.0777925 | AG9: 107.6429139 | AH9: 16216.39601
A10: =Triangulos!M146 -> R6 | B10: =Triangulos!O146 -> 2115.869887 | C10: =Triangulos!N146 -> 2118.2685 | E10: =AVERAGE(R:R) -> 2116.72099 | F10: =STDEVP(R:R) -> 60.97237812 | G10: =PERCENTILE(R:R,0.05) -> 2017.389778 | H10: =PERCENTILE(R:R,0.95) -> 2218.194671 | J10: 167 | L10: 0 | M10: 107.2975722 | N10: 264.005409 | O10: 526.5849977 | P10: 1071.75968 | Q10: 1659.815443 | R10: 2012.80999 | S10: 2438.521807 | T10: 3582.98439 | U10: 5479.596366 | V10: 16716.01053 | X10: 0 | Y10: 5153.007906 | Z10: 4092.288379 | AA10: 2980.349185 | AB10: 2064.86612 | AC10: 1207.211455 | AD10: 693.4951123 | AE10: 337.7647507 | AF10: 242.023005 | AG10: 86.57253368 | AH10: 16389.5336
A11: =Triangulos!M147 -> R7 | B11: =Triangulos!O147 -> 2490.072354 | C11: =Triangulos!N147 -> 2426.340798 | E11: =AVERAGE(S:S) -> 2490.649906 | F11: =STDEVP(S:S) -> 62.49911545 | G11: =PERCENTILE(S:S,0.05) -> 2388.908081 | H11: =PERCENTILE(S:S,0.95) -> 2593.723631 | J11: 159 | L11: 0 | M11: 100.5309325 | N11: 257.9169216 | O11: 442.5002424 | P11: 970.4413017 | Q11: 1540.680054 | R11: 2055.693118 | S11: 2440.89462 | T11: 3791.041182 | U11: 5097.299129 | V11: 15945.1178 | X11: 0 | Y11: 4940.471322 | Z11: 4098.151985 | AA11: 2950.585729 | AB11: 2135.424181 | AC11: 1282.373168 | AD11: 689.7541679 | AE11: 392.1061016 | AF11: 216.5272367 | AG11: 79.12566348 | AH11: 15697.31353
A12: =Triangulos!M148 -> R8 | B12: =Triangulos!O148 -> 3669.989931 | C12: =Triangulos!N148 -> 3718.848443 | E12: =AVERAGE(T:T) -> 3674.102168 | F12: =STDEVP(T:T) -> 102.2405512 | G12: =PERCENTILE(T:T,0.05) -> 3510.382059 | H12: =PERCENTILE(T:T,0.95) -> 3844.891706 | J12: 160 | L12: 0 | M12: 86.53485157 | N12: 271.3230575 | O12: 495.6244727 | P12: 933.2389982 | Q12: 1765.592674 | R12: 2094.784181 | S12: 2731.421485 | T12: 3651.752076 | U12: 4480.5458 | V12: 16011.64522 | X12: 0 | Y12: 5039.691971 | Z12: 4125.561681 | AA12: 2947.602933 | AB12: 1996.25076 | AC12: 1192.898252 | AD12: 680.0850659 | AE12: 428.6773834 | AF12: 224.8400875 | AG12: 108.4574341 | AH12: 16744.85854
A13: =Triangulos!M149 -> R9 | B13: =Triangulos!O149 -> 4999.47569 | C13: =Triangulos!N149 -> 4874.876247 | E13: =AVERAGE(U:U) -> 5015.414657 | F13: =STDEVP(U:U) -> 276.1821685 | G13: =PERCENTILE(U:U,0.05) -> 4585.735437 | H13: =PERCENTILE(U:U,0.95) -> 5491.191737 | J13: 166 | L13: 0 | M13: 92.16665136 | N13: 283.701407 | O13: 494.5780317 | P13: 925.3377199 | Q13: 1664.659724 | R13: 2203.206188 | S13: 2506.690072 | T13: 3631.219279 | U13: 5418.147781 | V13: 16634.98322 | X13: 0 | Y13: 5127.049858 | Z13: 4125.529032 | AA13: 2946.33308 | AB13: 1850.918079 | AC13: 1179.474845 | AD13: 694.5412376 | AE13: 388.0567265 | AF13: 194.5143225 | AG13: 78.73258092 | AH13: 17042.87541
A14: =Triangulos!M150 -> Total | B14: =SUM(B4:B13) -> 16675.52971 | C14: =SUM(C4:C13) -> 16559.59119 | E14: =AVERAGE(V:V) -> 16693.20766 | F14: =STDEVP(V:V) -> 493.1462538 | G14: =PERCENTILE(V:V,0.05) -> 15891.41159 | H14: =PERCENTILE(V:V,0.95) -> 17515.73968 | J14: 163 | L14: 0 | M14: 94.27458204 | N14: 271.2076014 | O14: 476.9162896 | P14: 897.8659565 | Q14: 1568.780044 | R14: 2095.153215 | S14: 2609.287545 | T14: 3695.003887 | U14: 4646.205183 | V14: 16318.00054 | X14: 0 | Y14: 4970.86775 | Z14: 4215.915069 | AA14: 2973.425781 | AB14: 1918.734993 | AC14: 1142.431828 | AD14: 781.4739432 | AE14: 392.2356774 | AF14: 219.9123061 | AG14: 90.82124424 | AH14: 16726.69099
J15: 165 | L15: 0 | M15: 117.3499083 | N15: 266.9620288 | O15: 479.8256953 | P15: 1026.191611 | Q15: 1598.994751 | R15: 2210.508203 | S15: 2477.258886 | T15: 3614.825266 | U15: 4933.967186 | V15: 16507.24294 | X15: 0 | Y15: 4843.548828 | Z15: 4026.510402 | AA15: 2866.197635 | AB15: 2022.455767 | AC15: 1227.522694 | AD15: 716.0351643 | AE15: 379.3632877 | AF15: 199.2077373 | AG15: 120.7711452 | AH15: 17651.95234
J16: 158 | L16: 0 | M16: 116.0293202 | N16: 281.2426392 | O16: 462.5154431 | P16: 807.185794 | Q16: 1622.58766 | R16: 1996.69752 | S16: 2416.140338 | T16: 3693.114683 | U16: 5259.333309 | V16: 15849.99171 | X16: 0 | Y16: 5053.05177 | Z16: 4061.779149 | AA16: 2847.688171 | AB16: 1922.231679 | AC16: 1198.304259 | AD16: 608.2562261 | AE16: 351.6368521 | AF16: 227.8856205 | AG16: 79.23390022 | AH16: 15697.06002
A17: Dotaciones para provisiones de siniestros | G17: Intervalo Bootstrap (90%) | J17: 176 | L17: 0 | M17: 32.7171906 | N17: 328.8640039 | O17: 546.6979622 | P17: 923.4148416 | Q17: 1537.86431 | R17: 1991.404189 | S17: 2423.345114 | T17: 3631.637994 | U17: 4828.067762 | V17: 17580.40866 | X17: 0 | Y17: 5001.203868 | Z17: 4099.808788 | AA17: 2923.382419 | AB17: 1811.560853 | AC17: 1123.747371 | AD17: 619.3049076 | AE17: 359.9902053 | AF17: 253.5321546 | AG17: 96.12875154 | AH17: 16720.06779
B18: =Triangulos!S139 -> Chain Ladder | C18: =Triangulos!R139 -> Bootstrap | E18: Estimadores B | F18: Error muestreo | G18: Inferior | H18: Superior | J18: 172 | L18: 0 | M18: 110.9740281 | N18: 250.3739264 | O18: 494.0674353 | P18: 926.3473841 | Q18: 1657.982396 | R18: 2041.3553 | S18: 2417.867029 | T18: 3790.633821 | U18: 4850.824365 | V18: 17167.2393 | X18: 0 | Y18: 4937.911578 | Z18: 3969.201561 | AA18: 2937.094681 | AB18: 1913.597974 | AC18: 1121.813111 | AD18: 733.6905668 | AE18: 360.7292469 | AF18: 185.4656557 | AG18: 57.58050926 | AH18: 17436.43878
A19: =Triangulos!Q140 -> R0 | B19: =Triangulos!S140 -> 0 | C19: =Triangulos!R140 -> 0 | E19: =AVERAGE(X:X) -> 0 | F19: =STDEVP(X:X) -> 0 | G19: =PERCENTILE(X:X,0.05) -> 0 | H19: =PERCENTILE(X:X,0.95) -> 0 | J19: 172 | L19: 0 | M19: 103.2189028 | N19: 354.4118181 | O19: 507.9410411 | P19: 974.9659069 | Q19: 1584.828729 | R19: 2172.071096 | S19: 2458.106541 | T19: 3728.264102 | U19: 5151.859245 | V19: 17221.51 | X19: 0 | Y19: 5031.730829 | Z19: 4007.213956 | AA19: 2836.418698 | AB19: 2067.229461 | AC19: 1265.917054 | AD19: 673.1751876 | AE19: 375.6187731 | AF19: 193.6748113 | AG19: 83.08812914 | AH19: 16977.74328
A20: =Triangulos!Q141 -> R1 | B20: =Triangulos!S141 -> 5015.014579 | C20: =Triangulos!R141 -> 4985.718272 | E20: =AVERAGE(Y:Y) -> 5019.245451 | F20: =STDEVP(Y:Y) -> 87.05777434 | G20: =PERCENTILE(Y:Y,0.05) -> 4880.384328 | H20: =PERCENTILE(Y:Y,0.95) -> 5164.736126 | J20: 179 | L20: 0 | M20: 89.41907296 | N20: 271.841937 | O20: 524.7988807 | P20: 980.8681591 | Q20: 1639.825008 | R20: 2124.706184 | S20: 2458.518073 | T20: 3642.525798 | U20: 5151.628728 | V20: 17858.88405 | X20: 0 | Y20: 4987.610169 | Z20: 4195.574902 | AA20: 3102.182867 | AB20: 1950.594028 | AC20: 1155.494824 | AD20: 701.02421 | AE20: 342.2533138 | AF20: 216.5592898 | AG20: 82.04069566 | AH20: 16749.75828
A21: =Triangulos!Q142 -> R2 | B21: =Triangulos!S142 -> 4110.01799 | C21: =Triangulos!R142 -> 4094.297591 | E21: =AVERAGE(Z:Z) -> 4115.791264 | F21: =STDEVP(Z:Z) -> 100.633588 | G21: =PERCENTILE(Z:Z,0.05) -> 3955.437481 | H21: =PERCENTILE(Z:Z,0.95) -> 4282.182542 | J21: 164 | L21: 0 | M21: 130.2888305 | N21: 318.5809989 | O21: 518.5437692 | P21: 981.8436143 | Q21: 1519.12099 | R21: 2056.041099 | S21: 2417.220854 | T21: 3778.968105 | U21: 4848.994052 | V21: 16366.38584 | X21: 0 | Y21: 5038.705351 | Z21: 4142.107211 | AA21: 3061.984804 | AB21: 1890.117401 | AC21: 1192.691657 | AD21: 716.3331496 | AE21: 427.3215513 | AF21: 250.3710607 | AG21: 81.88308132 | AH21: 17280.82131
A22: =Triangulos!Q143 -> R3 | B22: =Triangulos!S143 -> 2950.180234 | C22: =Triangulos!R143 -> 2903.216139 | E22: =AVERAGE(AA:AA) -> 2953.434287 | F22: =STDEVP(AA:AA) -> 89.43635153 | G22: =PERCENTILE(AA:AA,0.05) -> 2809.24001 | H22: =PERCENTILE(AA:AA,0.95) -> 3100.97235 | J22: 159 | L22: 0 | M22: 87.02783853 | N22: 266.8894354 | O22: 488.3110172 | P22: 949.1593862 | Q22: 1636.398632 | R22: 2059.011054 | S22: 2544.142586 | T22: 3751.521098 | U22: 4648.483281 | V22: 15903.82149 | X22: 0 | Y22: 5111.306231 | Z22: 4188.952088 | AA22: 3140.640449 | AB22: 1925.819133 | AC22: 1328.147401 | AD22: 651.456213 | AE22: 453.9096548 | AF22: 244.0952666 | AG22: 101.4504095 | AH22: 16530.94668
A23: =Triangulos!Q144 -> R4 | B23: =Triangulos!S144 -> 1958.77431 | C23: =Triangulos!R144 -> 1950.528317 | E23: =AVERAGE(AB:AB) -> 1961.048875 | F23: =STDEVP(AB:AB) -> 73.2322517 | G23: =PERCENTILE(AB:AB,0.05) -> 1843.320406 | H23: =PERCENTILE(AB:AB,0.95) -> 2084.867526 | J23: 165 | L23: 0 | M23: 114.1525198 | N23: 298.9052604 | O23: 565.900277 | P23: 961.1508677 | Q23: 1606.030983 | R23: 2101.70908 | S23: 2525.213987 | T23: 3695.303066 | U23: 4681.437996 | V23: 16508.83383 | X23: 0 | Y23: 5049.225065 | Z23: 4126.992704 | AA23: 2956.319572 | AB23: 2046.562307 | AC23: 1310.254658 | AD23: 709.0235995 | AE23: 419.7125424 | AF23: 201.4982892 | AG23: 62.86143757 | AH23: 16725.65143
A24: =Triangulos!Q145 -> R5 | B24: =Triangulos!S145 -> 1218.529694 | C24: =Triangulos!R145 -> 1193.052435 | E24: =AVERAGE(AC:AC) -> 1220.086096 | F24: =STDEVP(AC:AC) -> 56.23260184 | G24: =PERCENTILE(AC:AC,0.05) -> 1129.309082 | H24: =PERCENTILE(AC:AC,0.95) -> 1315.044791 | J24: 166 | L24: 0 | M24: 141.965806 | N24: 225.8781853 | O24: 460.0214218 | P24: 959.6050906 | Q24: 1552.067797 | R24: 2147.872916 | S24: 2473.816928 | T24: 3713.57893 | U24: 5706.457211 | V24: 16586.00197 | X24: 0 | Y24: 5104.51488 | Z24: 4106.653054 | AA24: 2890.577249 | AB24: 1907.100693 | AC24: 1199.320189 | AD24: 693.6278975 | AE24: 445.5873865 | AF24: 187.994202 | AG24: 95.40007126 | AH24: 16398.45067
A25: =Triangulos!Q146 -> R6 | B25: =Triangulos!S146 -> 706.5314375 | C25: =Triangulos!R146 -> 701.7704414 | E25: =AVERAGE(AD:AD) -> 708.388594 | F25: =STDEVP(AD:AD) -> 42.69397891 | G25: =PERCENTILE(AD:AD,0.05) -> 638.8571771 | H25: =PERCENTILE(AD:AD,0.95) -> 779.524183 | J25: 164 | L25: 0 | M25: 112.6757046 | N25: 268.8358874 | O25: 478.2524096 | P25: 1024.196323 | Q25: 1533.703281 | R25: 2146.820627 | S25: 2422.518066 | T25: 3620.831222 | U25: 5072.097033 | V25: 16357.60349 | X25: 0 | Y25: 4971.1409 | Z25: 4407.956602 | AA25: 2881.028577 | AB25: 1900.231863 | AC25: 1196.391409 | AD25: 698.7147734 | AE25: 414.2244909 | AF25: 219.9709996 | AG25: 95.07127847 | AH25: 17007.89684
A26: =Triangulos!Q147 -> R7 | B26: =Triangulos!S147 -> 400.4129895 | C26: =Triangulos!R147 -> 419.5492311 | E26: =AVERAGE(AE:AE) -> 401.5758991 | F26: =STDEVP(AE:AE) -> 32.89622873 | G26: =PERCENTILE(AE:AE,0.05) -> 348.5531894 | H26: =PERCENTILE(AE:AE,0.95) -> 457.4296817 | J26: 170 | L26: 0 | M26: 144.4245846 | N26: 240.3648422 | O26: 541.755065 | P26: 1008.272149 | Q26: 1575.463094 | R26: 2054.451185 | S26: 2472.444201 | T26: 3681.809543 | U26: 4753.398326 | V26: 16960.1758 | X26: 0 | Y26: 5082.859767 | Z26: 4141.781227 | AA26: 2919.647118 | AB26: 2017.427649 | AC26: 1084.488994 | AD26: 774.7508827 | AE26: 372.3279098 | AF26: 257.8603788 | AG26: 92.41588939 | AH26: 16445.80136
A27: =Triangulos!Q148 -> R8 | B27: =Triangulos!S148 -> 222.8509013 | C27: =Triangulos!R148 -> 227.0370099 | E27: =AVERAGE(AF:AF) -> 223.8042701 | F27: =STDEVP(AF:AF) -> 27.7273895 | G27: =PERCENTILE(AF:AF,0.05) -> 178.6013911 | H27: =PERCENTILE(AF:AF,0.95) -> 269.5015134 | J27: 161 | L27: 0 | M27: 107.0138883 | N27: 230.8434745 | O27: 498.7066982 | P27: 983.0145377 | Q27: 1521.670362 | R27: 1950.135606 | S27: 2425.796387 | T27: 3647.418398 | U27: 4986.616307 | V27: 16068.428 | X27: 0 | Y27: 4972.434304 | Z27: 4124.573681 | AA27: 2995.288691 | AB27: 1960.239702 | AC27: 1296.266972 | AD27: 729.5595618 | AE27: 434.6348794 | AF27: 209.1703681 | AG27: 123.9396276 | AH27: 16245.78186
A28: =Triangulos!Q149 -> R9 | B28: =Triangulos!S149 -> 93.21757791 | C28: =Triangulos!R149 -> 84.42175717 | E28: =AVERAGE(AG:AG) -> 93.47893874 | F28: =STDEVP(AG:AG) -> 22.32437488 | G28: =PERCENTILE(AG:AG,0.05) -> 61.58725418 | H28: =PERCENTILE(AG:AG,0.95) -> 132.3874267 | J28: 166 | L28: 0 | M28: 122.5971611 | N28: 281.6504753 | O28: 421.3949584 | P28: 894.2349801 | Q28: 1480.540874 | R28: 2106.737562 | S28: 2464.053251 | T28: 3827.030747 | U28: 4420.862807 | V28: 16575.17713 | X28: 0 | Y28: 5041.827982 | Z28: 4181.362708 | AA28: 2959.894769 | AB28: 1901.096325 | AC28: 1261.506462 | AD28: 733.7698258 | AE28: 387.2959216 | AF28: 207.6878764 | AG28: 92.68684128 | AH28: 16185.19334
A29: =Triangulos!Q150 -> Total | B29: =Triangulos!S150 -> 16675.52971 | C29: =Triangulos!R150 -> 16559.59119 | E29: =AVERAGE(AH:AH) -> 16693.05728 | F29: =STDEVP(AH:AH) -> 498.5353175 | G29: =PERCENTILE(AH:AH,0.05) -> 15888.94329 | H29: =PERCENTILE(AH:AH,0.95) -> 17538.3019 | J29: 169 | L29: 0 | M29: 101.8434179 | N29: 236.1066035 | O29: 515.2645756 | P29: 1015.514967 | Q29: 1551.263288 | R29: 2107.486578 | S29: 2377.617792 | T29: 3843.053016 | U29: 4593.495492 | V29: 16908.03722 | X29: 0 | Y29: 5000.140819 | Z29: 4159.485713 | AA29: 2919.581357 | AB29: 2175.711025 | AC29: 1188.391257 | AD29: 785.0910924 | AE29: 414.4902674 | AF29: 212.0959528 | AG29: 141.1974604 | AH29: 16073.77782
J30: 171 | L30: 0 | M30: 107.8740361 | N30: 304.4467287 | O30: 585.4558467 | P30: 877.7427285 | Q30: 1599.59907 | R30: 2143.4532 | S30: 2433.457566 | T30: 3477.266535 | U30: 5748.756052 | V30: 17062.99853 | X30: 0 | Y30: 5070.268561 | Z30: 4105.784605 | AA30: 2914.937299 | AB30: 2058.653727 | AC30: 1293.815785 | AD30: 789.8414188 | AE30: 472.9733635 | AF30: 264.0525455 | AG30: 100.7819599 | AH30: 16363.84437
J31: 158 | L31: 0 | M31: 92.42618882 | N31: 269.446129 | O31: 431.6328098 | P31: 937.2219363 | Q31: 1727.613672 | R31: 2185.285732 | S31: 2503.75525 | T31: 3622.114853 | U31: 4584.284515 | V31: 15833.00289 | X31: 0 | Y31: 5036.974701 | Z31: 4143.881682 | AA31: 2913.924088 | AB31: 2044.186646 | AC31: 1234.383789 | AD31: 675.9752244 | AE31: 420.9064657 | AF31: 213.6706452 | AG31: 71.14274773 | AH31: 15843.79629
J32: 163 | L32: 0 | M32: 109.2099231 | N32: 251.6761349 | O32: 505.6649549 | P32: 860.3511093 | Q32: 1489.593299 | R32: 2027.680862 | S32: 2527.438127 | T32: 3690.48987 | U32: 4673.015273 | V32: 16267.77509 | X32: 0 | Y32: 5030.36807 | Z32: 4109.960131 | AA32: 3133.601639 | AB32: 1773.435655 | AC32: 1217.968824 | AD32: 708.0207138 | AE32: 407.5471543 | AF32: 201.431932 | AG32: 87.27826945 | AH32: 16287.31563
J33: 174 | L33: 0 | M33: 158.5854345 | N33: 273.2850626 | O33: 529.9433509 | P33: 1027.188974 | Q33: 1648.748349 | R33: 2200.888418 | S33: 2486.004508 | T33: 3599.770411 | U33: 4916.151393 | V33: 17369.27509 | X33: 0 | Y33: 4843.14709 | Z33: 4124.40129 | AA33: 2984.050836 | AB33: 1894.938371 | AC33: 1173.134775 | AD33: 736.4353709 | AE33: 344.3820781 | AF33: 233.7122077 | AG33: 65.55071982 | AH33: 15291.8403
J34: 166 | L34: 0 | M34: 91.17101811 | N34: 286.8540891 | O34: 552.6332209 | P34: 927.3057571 | Q34: 1505.342386 | R34: 2043.849663 | S34: 2570.789998 | T34: 3627.26653 | U34: 5031.588369 | V34: 16645.18557 | X34: 0 | Y34: 5135.155827 | Z34: 4145.690285 | AA34: 2922.408118 | AB34: 1937.4146 | AC34: 1135.752973 | AD34: 721.5503373 | AE34: 427.7950833 | AF34: 231.2718433 | AG34: 118.5211239 | AH34: 16845.54459
J35: 168 | L35: 0 | M35: 106.7392544 | N35: 248.4222436 | O35: 525.3195276 | P35: 887.0061032 | Q35: 1576.652451 | R35: 2060.592819 | S35: 2538.923924 | T35: 3421.396404 | U35: 5105.653279 | V35: 16824.01278 | X35: 0 | Y35: 4947.857932 | Z35: 4096.622692 | AA35: 2947.607589 | AB35: 2073.01246 | AC35: 1195.680678 | AD35: 715.4336377 | AE35: 405.110231 | AF35: 202.3085016 | AG35: 107.3657877 | AH35: 16362.60617
J36: 171 | L36: 0 | M36: 126.8673882 | N36: 276.7972492 | O36: 534.3810349 | P36: 965.8954803 | Q36: 1562.060563 | R36: 2106.669802 | S36: 2411.564214 | T36: 3766.451506 | U36: 4922.082624 | V36: 17107.64906 | X36: 0 | Y36: 4898.761535 | Z36: 4078.602257 | AA36: 2976.314112 | AB36: 1902.331199 | AC36: 1245.047572 | AD36: 698.7505285 | AE36: 346.9606976 | AF36: 163.8799736 | AG36: 83.06138308 | AH36: 16617.59485
J37: 160 | L37: 0 | M37: 99.1980153 | N37: 241.2308606 | O37: 431.4945668 | P37: 891.1383481 | Q37: 1632.663576 | R37: 2096.577832 | S37: 2530.021654 | T37: 3483.398587 | U37: 5046.033678 | V37: 16007.97121 | X37: 0 | Y37: 4991.753599 | Z37: 4078.140149 | AA37: 3125.258174 | AB37: 1962.820774 | AC37: 1127.95947 | AD37: 749.1911275 | AE37: 461.6161779 | AF37: 226.0388165 | AG37: 104.3220024 | AH37: 16380.4733
J38: 160 | L38: 0 | M38: 68.54230054 | N38: 262.8865306 | O38: 467.9869092 | P38: 960.3756194 | Q38: 1599.353401 | R38: 2176.680189 | S38: 2523.43912 | T38: 3830.748597 | U38: 5131.952587 | V38: 16048.75404 | X38: 0 | Y38: 5158.128405 | Z38: 4164.741163 | AA38: 2778.656073 | AB38: 2071.630037 | AC38: 1262.8262 | AD38: 748.2082279 | AE38: 376.3182778 | AF38: 206.568174 | AG38: 79.53280483 | AH38: 16448.70793
J39: 162 | L39: 0 | M39: 89.25113119 | N39: 249.890739 | O39: 529.3687461 | P39: 937.3671942 | Q39: 1505.129074 | R39: 2139.12454 | S39: 2490.746027 | T39: 3873.126252 | U39: 5052.221207 | V39: 16202.61955 | X39: 0 | Y39: 5038.880176 | Z39: 4014.716813 | AA39: 2940.193665 | AB39: 2017.153152 | AC39: 1253.948757 | AD39: 744.3806115 | AE39: 432.8462757 | AF39: 277.2445102 | AG39: 72.26221168 | AH39: 16928.99585
J40: 161 | L40: 0 | M40: 80.08401268 | N40: 232.2749789 | O40: 374.904729 | P40: 945.8944612 | Q40: 1555.731509 | R40: 2218.035378 | S40: 2476.345946 | T40: 3755.699005 | U40: 5374.162723 | V40: 16104.51852 | X40: 0 | Y40: 5087.603076 | Z40: 4049.474956 | AA40: 3063.032807 | AB40: 1930.339533 | AC40: 1266.352894 | AD40: 703.9732754 | AE40: 445.9458212 | AF40: 181.4242468 | AG40: 99.02239953 | AH40: 16157.68883
J41: 167 | L41: 0 | M41: 99.41345117 | N41: 304.9144945 | O41: 460.6668608 | P41: 976.423846 | Q41: 1551.39022 | R41: 2066.061707 | S41: 2346.87195 | T41: 3657.575894 | U41: 5141.221153 | V41: 16688.85456 | X41: 0 | Y41: 5089.557875 | Z41: 4003.269219 | AA41: 2904.231529 | AB41: 1977.254626 | AC41: 1188.778363 | AD41: 718.7865102 | AE41: 331.9507141 | AF41: 249.563914 | AG41: 116.2129398 | AH41: 16394.86396
J42: 170 | L42: 0 | M42: 100.3606178 | N42: 284.8852961 | O42: 505.801394 | P42: 1004.004186 | Q42: 1662.927367 | R42: 2022.524345 | S42: 2497.092363 | T42: 3789.439564 | U42: 4812.789139 | V42: 16982.33278 | X42: 0 | Y42: 4930.627059 | Z42: 4067.691262 | AA42: 2936.267771 | AB42: 1968.075885 | AC42: 1246.276266 | AD42: 663.3524047 | AE42: 389.9560621 | AF42: 244.6842652 | AG42: 100.904255 | AH42: 16102.04988
J43: 160 | L43: 0 | M43: 90.34267096 | N43: 300.6085366 | O43: 565.6669982 | P43: 904.8420988 | Q43: 1677.65431 | R43: 2065.312299 | S43: 2481.241814 | T43: 3682.576168 | U43: 4541.226873 | V43: 15957.34617 | X43: 0 | Y43: 5079.481653 | Z43: 4109.958205 | AA43: 3109.357015 | AB43: 1948.677732 | AC43: 1235.749978 | AD43: 699.9156351 | AE43: 462.3689775 | AF43: 230.5413569 | AG43: 82.27621244 | AH43: 17069.15278
J44: 161 | L44: 0 | M44: 85.53596254 | N44: 254.580265 | O44: 551.7892229 | P44: 872.9603818 | Q44: 1598.778054 | R44: 2095.71389 | S44: 2479.088277 | T44: 3726.72579 | U44: 5322.637358 | V44: 16106.0662 | X44: 0 | Y44: 5044.423564 | Z44: 4210.671182 | AA44: 3035.535764 | AB44: 1934.709469 | AC44: 1239.358742 | AD44: 690.6708597 | AE44: 343.8716786 | AF44: 266.3663522 | AG44: 133.3820803 | AH44: 17365.76875
J45: 170 | L45: 0 | M45: 156.2288417 | N45: 202.9299198 | O45: 492.1891159 | P45: 891.2991437 | Q45: 1592.676334 | R45: 2138.233832 | S45: 2557.640735 | T45: 3583.528335 | U45: 4920.96551 | V45: 17024.1083 | X45: 0 | Y45: 4863.087661 | Z45: 4077.88101 | AA45: 2985.997828 | AB45: 1927.454181 | AC45: 1237.432513 | AD45: 604.6763709 | AE45: 454.6661745 | AF45: 236.8588806 | AG45: 93.38045872 | AH45: 16198.46718
J46: 174 | L46: 0 | M46: 126.8251489 | N46: 258.1099998 | O46: 491.958814 | P46: 927.4487903 | Q46: 1550.145774 | R46: 2179.850186 | S46: 2516.181751 | T46: 3649.882367 | U46: 4679.162229 | V46: 17425.65064 | X46: 0 | Y46: 4765.193141 | Z46: 4227.083392 | AA46: 2999.682307 | AB46: 1918.761127 | AC46: 1285.72376 | AD46: 837.5281335 | AE46: 412.7867762 | AF46: 233.5219415 | AG46: 91.77261946 | AH46: 17054.44055
J47: 172 | L47: 0 | M47: 106.6512801 | N47: 223.7205227 | O47: 482.186736 | P47: 930.941144 | Q47: 1587.574742 | R47: 2046.598598 | S47: 2539.413556 | T47: 3724.301121 | U47: 5095.11235 | V47: 17223.98495 | X47: 0 | Y47: 5014.449652 | Z47: 4252.755724 | AA47: 2989.283119 | AB47: 1911.745258 | AC47: 1207.121044 | AD47: 639.4013226 | AE47: 392.6871537 | AF47: 188.0210731 | AG47: 77.62861874 | AH47: 16609.40083
J48: 161 | L48: 0 | M48: 120.6277409 | N48: 261.5458688 | O48: 490.0537756 | P48: 977.6276451 | Q48: 1637.333046 | R48: 2089.030719 | S48: 2440.985423 | T48: 3642.736897 | U48: 4745.625289 | V48: 16094.24702 | X48: 0 | Y48: 4858.873971 | Z48: 4125.050123 | AA48: 2936.909763 | AB48: 2094.309377 | AC48: 1221.458246 | AD48: 732.9668696 | AE48: 458.3691686 | AF48: 153.2762063 | AG48: 83.8548109 | AH48: 16600.51372
J49: 161 | L49: 0 | M49: 92.93745997 | N49: 185.3480854 | O49: 523.5291774 | P49: 947.8805848 | Q49: 1599.86151 | R49: 2047.143522 | S49: 2451.665851 | T49: 3634.57953 | U49: 5410.348594 | V49: 16116.49456 | X49: 0 | Y49: 5074.266915 | Z49: 4209.937761 | AA49: 2878.651558 | AB49: 1910.553683 | AC49: 1206.908204 | AD49: 720.7332041 | AE49: 314.6044106 | AF49: 246.5186602 | AG49: 120.598806 | AH49: 16724.19857
J50: 168 | L50: 0 | M50: 130.670759 | N50: 285.7324383 | O50: 533.0886982 | P50: 921.2174512 | Q50: 1615.270775 | R50: 2055.539769 | S50: 2427.476666 | T50: 3593.893734 | U50: 4422.291113 | V50: 16824.21209 | X50: 0 | Y50: 5134.23285 | Z50: 4046.062577 | AA50: 2957.096148 | AB50: 1955.184322 | AC50: 1208.228763 | AD50: 769.8207403 | AE50: 448.4263679 | AF50: 269.3197288 | AG50: 73.62171273 | AH50: 16680.1983
J51: 177 | L51: 0 | M51: 102.0074914 | N51: 242.9585002 | O51: 493.7690715 | P51: 980.3569352 | Q51: 1605.60898 | R51: 2099.982984 | S51: 2460.954107 | T51: 3715.965223 | U51: 5091.912122 | V51: 17721.35692 | X51: 0 | Y51: 4906.337067 | Z51: 4206.73185 | AA51: 2898.19688 | AB51: 1953.4042 | AC51: 1191.424252 | AD51: 707.0024283 | AE51: 417.4299374 | AF51: 164.160567 | AG51: 127.0548313 | AH51: 17704.10558
J52: 175 | L52: 0 | M52: 80.75584831 | N52: 295.4522345 | O52: 448.1846104 | P52: 993.3868499 | Q52: 1639.383882 | R52: 2148.415802 | S52: 2494.481701 | T52: 3560.701137 | U52: 5565.173821 | V52: 17471.84255 | X52: 0 | Y52: 4975.703151 | Z52: 4085.689146 | AA52: 3051.421378 | AB52: 1965.635191 | AC52: 1156.651555 | AD52: 792.4854881 | AE52: 383.3724057 | AF52: 221.6322805 | AG52: 113.2403259 | AH52: 16844.97721
J53: 168 | L53: 0 | M53: 87.52522644 | N53: 301.9514216 | O53: 469.3852425 | P53: 887.8071909 | Q53: 1603.40603 | R53: 2131.05115 | S53: 2497.953563 | T53: 3749.633739 | U53: 5482.589606 | V53: 16811.49542 | X53: 0 | Y53: 4936.983877 | Z53: 3992.814493 | AA53: 2976.971881 | AB53: 1831.748017 | AC53: 1131.856493 | AD53: 767.6968175 | AE53: 325.9498869 | AF53: 228.7192897 | AG53: 66.42662416 | AH53: 16195.05739
J54: 173 | L54: 0 | M54: 106.3457849 | N54: 233.9939891 | O54: 487.6502437 | P54: 986.8747176 | Q54: 1648.539738 | R54: 2101.884847 | S54: 2483.567535 | T54: 3547.695434 | U54: 5201.563503 | V54: 17289.24402 | X54: 0 | Y54: 5019.577249 | Z54: 4029.45608 | AA54: 3048.369563 | AB54: 1971.166882 | AC54: 1222.144516 | AD54: 699.240726 | AE54: 429.9298262 | AF54: 174.3404892 | AG54: 109.0132713 | AH54: 16237.4578
J55: 170 | L55: 0 | M55: 111.1213667 | N55: 330.5458502 | O55: 460.6998262 | P55: 889.5697692 | Q55: 1628.274825 | R55: 2182.824153 | S55: 2517.050702 | T55: 3620.217411 | U55: 4635.749685 | V55: 17003.52504 | X55: 0 | Y55: 4975.75846 | Z55: 4151.381079 | AA55: 3010.75638 | AB55: 1882.03075 | AC55: 1187.913259 | AD55: 629.6273389 | AE55: 387.2633768 | AF55: 183.7305262 | AG55: 98.14551888 | AH55: 16322.39354
J56: 177 | L56: 0 | M56: 94.73548238 | N56: 257.2468926 | O56: 448.2747161 | P56: 827.3228148 | Q56: 1578.705408 | R56: 2155.735497 | S56: 2540.233946 | T56: 3604.148682 | U56: 5338.756422 | V56: 17675.03552 | X56: 0 | Y56: 4837.851712 | Z56: 3935.502687 | AA56: 3101.9912 | AB56: 1875.382772 | AC56: 1238.839982 | AD56: 756.1297661 | AE56: 430.5603451 | AF56: 277.8377485 | AG56: 119.5947383 | AH56: 16889.04856
J57: 164 | L57: 0 | M57: 104.2927107 | N57: 246.8245051 | O57: 516.7269783 | P57: 978.0191136 | Q57: 1653.170148 | R57: 2288.88836 | S57: 2518.124266 | T57: 3747.104537 | U57: 4872.369493 | V57: 16374.62717 | X57: 0 | Y57: 4926.510215 | Z57: 4121.441929 | AA57: 2896.631293 | AB57: 1986.736586 | AC57: 1252.862265 | AD57: 729.7534892 | AE57: 457.5419545 | AF57: 229.1974831 | AG57: 133.87512 | AH57: 18091.97749
J58: 170 | L58: 0 | M58: 140.0938638 | N58: 249.5136149 | O58: 479.0582645 | P58: 962.5829207 | Q58: 1592.583369 | R58: 2069.921248 | S58: 2485.721205 | T58: 3486.782687 | U58: 4871.593966 | V58: 16974.92792 | X58: 0 | Y58: 4976.914185 | Z58: 4268.084896 | AA58: 3117.786525 | AB58: 1786.606551 | AC58: 1268.438203 | AD58: 759.2748968 | AE58: 381.1820751 | AF58: 224.5177542 | AG58: 88.87707373 | AH58: 16753.28086
J59: 169 | L59: 0 | M59: 113.0061645 | N59: 253.222823 | O59: 466.6982785 | P59: 924.0900853 | Q59: 1562.726153 | R59: 2052.329923 | S59: 2566.920488 | T59: 3847.39221 | U59: 5550.094716 | V59: 16924.57456 | X59: 0 | Y59: 5070.961931 | Z59: 4339.692638 | AA59: 2944.838516 | AB59: 2002.615468 | AC59: 1192.264687 | AD59: 810.0809505 | AE59: 415.164449 | AF59: 261.280306 | AG59: 100.4910567 | AH59: 16318.26783
A60: Representación | B60: =E14/100 -> 166.9320766 | C60: =B60/2 -> 83.46603829 | J60: 164 | L60: 0 | M60: 145.2822949 | N60: 303.5456079 | O60: 523.3939449 | P60: 869.0469513 | Q60: 1548.153976 | R60: 2063.008934 | S60: 2444.988494 | T60: 3552.723645 | U60: 5057.955577 | V60: 16438.64524 | X60: 0 | Y60: 5024.053016 | Z60: 4179.993434 | AA60: 2841.070256 | AB60: 2097.521713 | AC60: 1291.038041 | AD60: 695.5072114 | AE60: 432.9853346 | AF60: 214.5450089 | AG60: 73.86642344 | AH60: 16859.82929
A61: Gráfica | B61: =F14/100 -> 4.931462538 | C61: =B61/2 -> 2.465731269 | J61: 175 | L61: 0 | M61: 111.639774 | N61: 190.9891342 | O61: 505.1689141 | P61: 904.5776474 | Q61: 1574.647757 | R61: 2152.710094 | S61: 2602.484107 | T61: 3654.492253 | U61: 4977.56524 | V61: 17528.97547 | X61: 0 | Y61: 4933.051268 | Z61: 4217.452466 | AA61: 2913.117217 | AB61: 1934.673077 | AC61: 1255.479921 | AD61: 705.9630107 | AE61: 441.9124192 | AF61: 209.4263406 | AG61: 141.4866948 | AH61: 16246.44629
J62: 166 | L62: 0 | M62: 72.22598793 | N62: 284.2955285 | O62: 532.6675691 | P62: 982.6021805 | Q62: 1429.894567 | R62: 2143.188775 | S62: 2552.24084 | T62: 3691.955629 | U62: 4996.730141 | V62: 16589.77719 | X62: 0 | Y62: 4990.570678 | Z62: 4030.582502 | AA62: 2879.017506 | AB62: 2111.21077 | AC62: 1262.735382 | AD62: 660.5866372 | AE62: 329.5225109 | AF62: 203.3671981 | AG62: 129.9726636 | AH62: 17334.15744
A63: 152 | B63: =FREQUENCY(J:J,A63:A93) -> 13 | C63: =A63/2 -> 76 | D63: =NORMDIST(A63,$B$60,$B$61,FALSE)*$B$94 -> 8.240092177 | J63: 165 | L63: 0 | M63: 107.011067 | N63: 214.9150326 | O63: 425.7304867 | P63: 1023.881642 | Q63: 1648.097708 | R63: 2164.970744 | S63: 2475.789506 | T63: 3526.755985 | U63: 5028.468499 | V63: 16524.50632 | X63: 0 | Y63: 5042.306685 | Z63: 3969.998286 | AA63: 2865.202834 | AB63: 1949.210775 | AC63: 1174.488709 | AD63: 806.1189561 | AE63: 375.572099 | AF63: 225.2729527 | AG63: 91.07720235 | AH63: 17216.90587
A64: 153 | B64: 11 | C64: =A64/2 -> 76.5 | D64: 14.91626543 | J64: 168 | L64: 0 | M64: 126.3538527 | N64: 175.1706672 | O64: 486.9246334 | P64: 947.5393438 | Q64: 1530.427577 | R64: 2137.288181 | S64: 2518.814443 | T64: 3585.819932 | U64: 4983.759272 | V64: 16827.46188 | X64: 0 | Y64: 4949.653161 | Z64: 4087.13074 | AA64: 2962.297143 | AB64: 1999.381766 | AC64: 1270.897127 | AD64: 724.9819963 | AE64: 448.8320985 | AF64: 235.9002812 | AG64: 94.40265853 | AH64: 15779.66456
A65: 154 | B65: 18 | C65: 77 | D65: 25.91374228 | J65: 170 | L65: 0 | M65: 92.80584924 | N65: 180.3976862 | O65: 510.6692273 | P65: 934.8148201 | Q65: 1527.69488 | R65: 2099.689195 | S65: 2620.230371 | T65: 3699.314012 | U65: 4614.936513 | V65: 17026.65432 | X65: 0 | Y65: 5013.056113 | Z65: 4113.083496 | AA65: 2773.410167 | AB65: 1936.218586 | AC65: 1230.404179 | AD65: 698.8361533 | AE65: 359.2091619 | AF65: 227.0008343 | AG65: 61.27111554 | AH65: 17404.56992
A66: 155 | B66: 40 | C66: 77.5 | D66: 43.20581155 | J66: 168 | L66: 0 | M66: 101.733203 | N66: 246.1467547 | O66: 482.2053998 | P66: 908.0442165 | Q66: 1627.738233 | R66: 2142.937543 | S66: 2493.951088 | T66: 3850.129401 | U66: 4740.460118 | V66: 16752.51601 | X66: 0 | Y66: 5061.345486 | Z66: 4005.253454 | AA66: 2900.626503 | AB66: 2037.937344 | AC66: 1350.841795 | AD66: 729.4207058 | AE66: 387.3559665 | AF66: 247.2913314 | AG66: 90.3682843 | AH66: 16426.57251
A67: 156 | B67: 77 | C67: 78 | D67: 69.13471838 | J67: =ROUND(V67/100,0) -> 166 | L67: 0 | M67: 104.011365 | N67: 259.4257876 | O67: 467.9070512 | P67: 896.1362834 | Q67: 1560.865593 | R67: 2076.88275 | S67: 2436.188797 | T67: 3715.426643 | U67: 4808.917905 | V67: 16613.44332 | X67: 0 | Y67: 4931.520161 | Z67: 4151.009926 | AA67: 2990.020975 | AB67: 1928.675408 | AC67: 1195.764554 | AD67: 613.5168574 | AE67: 321.2146409 | AF67: 190.1182136 | AG67: 114.8526755 | AH67: 15795.41925
A68: 157 | B68: 82 | C68: 78.5 | D68: 106.1676559 | J68: 173 | L68: 0 | M68: 76.80939808 | N68: 241.050713 | O68: 492.0425488 | P68: 908.8873265 | Q68: 1548.434588 | R68: 2130.497368 | S68: 2635.083595 | T68: 3662.94835 | U68: 4789.91633 | V68: 17266.62856 | X68: 0 | Y68: 5041.905457 | Z68: 4093.640352 | AA68: 2834.87074 | AB68: 2017.223543 | AC68: 1171.595167 | AD68: 601.3452958 | AE68: 392.3439132 | AF68: 228.0652858 | AG68: 137.0718296 | AH68: 16245.07765
A69: 158 | B69: 169 | C69: 79 | D69: 156.469703 | J69: 172 | L69: 0 | M69: 74.87573785 | N69: 309.2398285 | O69: 550.2973717 | P69: 890.9900202 | Q69: 1720.982552 | R69: 1955.166803 | S69: 2524.134444 | T69: 3476.359888 | U69: 5050.968728 | V69: 17181.17562 | X69: 0 | Y69: 5042.911748 | Z69: 4096.737576 | AA69: 2865.307947 | AB69: 1983.558972 | AC69: 1248.220784 | AD69: 724.0264931 | AE69: 401.2328163 | AF69: 232.0244052 | AG69: 78.10805988 | AH69: 16230.53012
A70: 159 | B70: 224 | C70: 79.5 | D70: 221.3147133 | J70: 167 | L70: 0 | M70: 83.68227975 | N70: 318.0370557 | O70: 488.9649952 | P70: 959.4557133 | Q70: 1617.518496 | R70: 2105.034258 | S70: 2463.05061 | T70: 3755.611586 | U70: 4929.169973 | V70: 16701.9216 | X70: 0 | Y70: 5149.793447 | Z70: 4065.13506 | AA70: 2871.87988 | AB70: 1960.892934 | AC70: 1159.979888 | AD70: 727.5199131 | AE70: 380.7614671 | AF70: 223.1986237 | AG70: 120.2713296 | AH70: 17584.24246
A71: 160 | B71: 295 | C71: 80 | D71: 300.4224032 | J71: 168 | L71: 0 | M71: 119.6336728 | N71: 250.5493796 | O71: 451.6659089 | P71: 916.7081668 | Q71: 1531.424954 | R71: 2157.254397 | S71: 2545.90824 | T71: 3565.007264 | U71: 4801.718042 | V71: 16789.76399 | X71: 0 | Y71: 5064.602198 | Z71: 4161.694803 | AA71: 2851.183392 | AB71: 1875.538191 | AC71: 1224.542211 | AD71: 684.9259533 | AE71: 359.8152381 | AF71: 237.114611 | AG71: 103.7979611 | AH71: 16266.98194
A72: 161 | B72: 438 | C72: 80.5 | D72: 391.3779405 | J72: 165 | L72: 0 | M72: 98.33056977 | N72: 174.2005718 | O72: 530.6270451 | P72: 910.8303314 | Q72: 1562.988613 | R72: 2062.716146 | S72: 2466.914723 | T72: 3593.556912 | U72: 5024.187562 | V72: 16521.97709 | X72: 0 | Y72: 5080.664029 | Z72: 4077.556748 | AA72: 2902.74372 | AB72: 2085.935685 | AC72: 1219.335282 | AD72: 671.6427637 | AE72: 348.2739108 | AF72: 220.5927165 | AG72: 107.0543774 | AH72: 16361.57951
A73: 162 | B73: 470 | C73: 81 | D73: 489.3305953 | J73: 159 | L73: 0 | M73: 119.5045959 | N73: 274.5655854 | O73: 471.740554 | P73: 976.9848413 | Q73: 1597.323205 | R73: 2140.309267 | S73: 2477.213601 | T73: 3735.494915 | U73: 5116.698547 | V73: 15940.80848 | X73: 0 | Y73: 5069.91149 | Z73: 4095.424404 | AA73: 3051.958279 | AB73: 1954.103526 | AC73: 1269.509037 | AD73: 672.1960651 | AE73: 460.9493845 | AF73: 200.0667197 | AG73: 89.26245686 | AH73: 16507.31846
A74: 163 | B74: 578 | C74: 81.5 | D74: 587.1518008 | J74: 159 | L74: 0 | M74: 112.3264895 | N74: 241.9509375 | O74: 565.8045195 | P74: 1019.541429 | Q74: 1474.20745 | R74: 2217.364737 | S74: 2454.674641 | T74: 3784.542061 | U74: 4974.755117 | V74: 15867.26913 | X74: 0 | Y74: 5133.573338 | Z74: 4150.02002 | AA74: 2951.08574 | AB74: 1939.535282 | AC74: 1255.71112 | AD74: 691.0008483 | AE74: 358.5309536 | AF74: 233.3224644 | AG74: 78.38372422 | AH74: 16334.96245
A75: 164 | B75: 701 | C75: 82 | D75: 676.1459064 | J75: 164 | L75: 0 | M75: 102.5213946 | N75: 286.7529242 | O75: 479.7574164 | P75: 909.9411718 | Q75: 1612.337194 | R75: 2167.447243 | S75: 2445.640654 | T75: 3576.47253 | U75: 4777.083305 | V75: 16442.94304 | X75: 0 | Y75: 5132.921192 | Z75: 4059.54087 | AA75: 2901.631113 | AB75: 1952.609207 | AC75: 1113.614527 | AD75: 728.7058786 | AE75: 370.2175168 | AF75: 230.5752094 | AG75: 94.89219836 | AH75: 16756.24135
A76: 165 | B76: 814 | C76: 82.5 | D76: 747.2612262 | J76: 162 | L76: 0 | M76: 111.919239 | N76: 234.5072677 | O76: 512.0650758 | P76: 924.3642778 | Q76: 1639.299816 | R76: 2171.25542 | S76: 2495.382817 | T76: 3693.907916 | U76: 5086.702196 | V76: 16236.9705 | X76: 0 | Y76: 5053.211277 | Z76: 4171.148328 | AA76: 3046.496151 | AB76: 1945.077325 | AC76: 1152.26322 | AD76: 764.6948296 | AE76: 385.0478736 | AF76: 236.1661346 | AG76: 96.81807127 | AH76: 16789.32762
A77: 166 | B77: 822 | C77: 83 | D77: 792.5861385 | J77: 166 | L77: 0 | M77: 99.70990026 | N77: 277.6651378 | O77: 479.9020992 | P77: 900.2571459 | Q77: 1578.759054 | R77: 2112.919728 | S77: 2531.55743 | T77: 3611.840273 | U77: 5142.750757 | V77: 16628.80835 | X77: 0 | Y77: 5215.670342 | Z77: 4207.435019 | AA77: 2892.258823 | AB77: 2107.811292 | AC77: 1201.169407 | AD77: 702.3341371 | AE77: 407.0269431 | AF77: 204.7490554 | AG77: 129.8232644 | AH77: 17043.08469
A78: 167 | B78: 787 | C78: 83.5 | D78: 806.7936968 | J78: 166 | L78: 0 | M78: 150.2023319 | N78: 253.5830233 | O78: 494.3226433 | P78: 941.7235314 | Q78: 1554.874063 | R78: 2140.53225 | S78: 2499.983698 | T78: 3694.438318 | U78: 5015.716599 | V78: 16577.89702 | X78: 0 | Y78: 4965.078275 | Z78: 4072.772972 | AA78: 3138.852586 | AB78: 2004.048547 | AC78: 1234.876407 | AD78: 718.4732463 | AE78: 342.0128493 | AF78: 190.9774842 | AG78: 116.2519969 | AH78: 16965.64746
A79: 168 | B79: 779 | C79: 84 | D79: 788.1711242 | J79: 175 | L79: 0 | M79: 96.97287857 | N79: 268.3360504 | O79: 570.8692731 | P79: 959.320903 | Q79: 1616.129322 | R79: 2178.002074 | S79: 2292.242239 | T79: 3618.653173 | U79: 5086.04169 | V79: 17457.17677 | X79: 0 | Y79: 5255.172179 | Z79: 4225.317303 | AA79: 3007.86812 | AB79: 2060.336664 | AC79: 1165.442393 | AD79: 686.7829112 | AE79: 398.8460363 | AF79: 219.9130369 | AG79: 81.80899651 | AH79: 16882.59205
A80: 169 | B80: 722 | C80: 84.5 | D80: 738.9593393 | J80: 159 | L80: 0 | M80: 148.0778959 | N80: 326.0828586 | O80: 511.9473563 | P80: 944.7680716 | Q80: 1603.729452 | R80: 2160.041931 | S80: 2336.632683 | T80: 3582.748407 | U80: 4692.335092 | V80: 15927.64918 | X80: 0 | Y80: 4946.769227 | Z80: 4047.679648 | AA80: 2928.052901 | AB80: 1997.959123 | AC80: 1294.020736 | AD80: 679.941328 | AE80: 454.0647282 | AF80: 219.8985068 | AG80: 104.4893936 | AH80: 16734.64844
A81: 170 | B81: 642 | C81: 85 | D81: 664.9095401 | J81: 164 | L81: 0 | M81: 117.8461163 | N81: 260.3795904 | O81: 454.8214051 | P81: 877.5313825 | Q81: 1647.011553 | R81: 2116.241174 | S81: 2552.21639 | T81: 3782.945305 | U81: 4556.27284 | V81: 16375.03104 | X81: 0 | Y81: 4996.571125 | Z81: 4137.057849 | AA81: 3043.76463 | AB81: 1911.626065 | AC81: 1252.172466 | AD81: 772.0734645 | AE81: 396.9940236 | AF81: 236.0903407 | AG81: 121.1063871 | AH81: 16219.41278
A82: 171 | B82: 567 | C82: 85.5 | D82: 574.1780492 | J82: 166 | L82: 0 | M82: 86.71651502 | N82: 260.8840159 | O82: 478.3710132 | P82: 974.2830736 | Q82: 1497.285525 | R82: 2072.173172 | S82: 2458.62424 | T82: 3860.078089 | U82: 5236.378636 | V82: 16567.37298 | X82: 0 | Y82: 4928.756113 | Z82: 4195.147303 | AA82: 2965.245198 | AB82: 1975.545517 | AC82: 1139.204719 | AD82: 688.2006175 | AE82: 330.0867645 | AF82: 194.5953128 | AG82: 120.0916133 | AH82: 16401.647
A83: 172 | B83: 435 | C83: 86 | D83: 475.8527747 | J83: 167 | L83: 0 | M83: 129.649003 | N83: 234.3010847 | O83: 477.2038282 | P83: 879.3506065 | Q83: 1630.358641 | R83: 2109.931094 | S83: 2411.21565 | T83: 3643.188186 | U83: 4391.086647 | V83: 16718.28297 | X83: 0 | Y83: 5002.802611 | Z83: 4114.47293 | AA83: 2982.809901 | AB83: 2045.338403 | AC83: 1282.92126 | AD83: 732.3586821 | AE83: 357.955798 | AF83: 248.6407128 | AG83: 96.64449776 | AH83: 16632.37389
A84: 173 | B84: 385 | C84: 86.5 | D84: 378.4779877 | J84: 169 | L84: 0 | M84: 105.9709972 | N84: 239.3190009 | O84: 453.3770587 | P84: 928.2940542 | Q84: 1576.488349 | R84: 2079.476587 | S84: 2488.703191 | T84: 3804.126364 | U84: 4509.621067 | V84: 16866.46217 | X84: 0 | Y84: 4943.645724 | Z84: 4219.293818 | AA84: 2736.332786 | AB84: 1974.920772 | AC84: 1270.000409 | AD84: 721.6600727 | AE84: 337.6381109 | AF84: 218.1069355 | AG84: 82.32442194 | AH84: 17380.25664
A85: 174 | B85: 279 | C85: 87 | D85: 288.9020644 | J85: 177 | L85: 0 | M85: 73.15219744 | N85: 253.381676 | O85: 473.2137133 | P85: 968.719578 | Q85: 1564.555077 | R85: 2052.545407 | S85: 2469.662176 | T85: 3601.101386 | U85: 5360.369526 | V85: 17730.89183 | X85: 0 | Y85: 5072.357492 | Z85: 3991.769808 | AA85: 2886.900786 | AB85: 1860.380518 | AC85: 1199.602921 | AD85: 686.558087 | AE85: 419.8316771 | AF85: 201.844985 | AG85: 124.7039758 | AH85: 16463.94801
A86: 175 | B86: 211 | C86: 87.5 | D86: 211.6423932 | J86: 162 | L86: 0 | M86: 120.7900003 | N86: 240.5580869 | O86: 550.4409659 | P86: 965.4419632 | Q86: 1659.853556 | R86: 2144.33658 | S86: 2584.636953 | T86: 3639.036664 | U86: 4998.223098 | V86: 16230.44434 | X86: 0 | Y86: 5085.78363 | Z86: 4130.642388 | AA86: 2927.22555 | AB86: 1991.566911 | AC86: 1234.212096 | AD86: 682.128975 | AE86: 399.0621201 | AF86: 220.6995239 | AG86: 82.26611856 | AH86: 16553.6307
A87: 176 | B87: 145 | C87: 88 | D87: 148.7978588 | J87: 171 | L87: 0 | M87: 117.67818 | N87: 246.4210556 | O87: 457.8656249 | P87: 1031.307643 | Q87: 1639.764593 | R87: 2142.232838 | S87: 2437.375065 | T87: 3875.303914 | U87: 5042.581536 | V87: 17102.73573 | X87: 0 | Y87: 5145.024477 | Z87: 4031.483646 | AA87: 2973.16952 | AB87: 1998.268981 | AC87: 1087.37192 | AD87: 726.2226687 | AE87: 399.6226051 | AF87: 181.8394751 | AG87: 92.72789853 | AH87: 17955.13165
A88: 177 | B88: 102 | C88: 88.5 | D88: 100.3997656 | J88: 177 | L88: 0 | M88: 99.76361711 | N88: 271.8512423 | O88: 418.1081094 | P88: 976.912719 | Q88: 1668.503907 | R88: 2196.842039 | S88: 2420.049108 | T88: 3740.011196 | U88: 5398.641834 | V88: 17743.79076 | X88: 0 | Y88: 4968.339078 | Z88: 4036.235466 | AA88: 2977.09222 | AB88: 1992.659534 | AC88: 1188.150764 | AD88: 731.4073321 | AE88: 348.824135 | AF88: 223.1859495 | AG88: 108.895419 | AH88: 16626.33797
A89: 178 | B89: 70 | C89: 89 | D89: 65.01457317 | J89: 162 | L89: 0 | M89: 95.29808125 | N89: 271.1174744 | O89: 464.3423274 | P89: 926.3988988 | Q89: 1532.480181 | R89: 2117.536457 | S89: 2649.231627 | T89: 3792.446435 | U89: 5244.044744 | V89: 16208.6646 | X89: 0 | Y89: 4967.054548 | Z89: 4108.314999 | AA89: 2931.5121 | AB89: 1976.68972 | AC89: 1211.047692 | AD89: 617.3631012 | AE89: 390.3532443 | AF89: 199.6849151 | AG89: 116.2959131 | AH89: 17053.22491
A90: 179 | B90: 49 | C90: 89.5 | D90: 40.40459256 | J90: 174 | L90: 0 | M90: 96.14897697 | N90: 274.9559645 | O90: 516.5456759 | P90: 987.5044919 | Q90: 1546.843316 | R90: 2104.99911 | S90: 2462.533717 | T90: 3592.95276 | U90: 4703.041141 | V90: 17424.77571 | X90: 0 | Y90: 5128.425273 | Z90: 4120.316701 | AA90: 2960.48912 | AB90: 2143.024068 | AC90: 1176.943877 | AD90: 699.0410707 | AE90: 495.7563025 | AF90: 244.6092728 | AG90: 139.8724254 | AH90: 17505.19876
A91: 180 | B91: 27 | C91: 90 | D91: =NORMDIST(A91,$B$60,$B$61,FALSE)*$B$94 -> 24.09865182 | J91: 167 | L91: 0 | M91: 146.9896039 | N91: 309.5067228 | O91: 504.3597269 | P91: 921.729076 | Q91: 1575.394865 | R91: 1995.643752 | S91: 2497.883554 | T91: 3529.937966 | U91: 4950.854553 | V91: 16716.36028 | X91: 0 | Y91: 4884.956076 | Z91: 4186.642569 | AA91: 2885.266467 | AB91: 1858.413287 | AC91: 1221.19718 | AD91: 652.7869385 | AE91: 352.7531739 | AF91: 224.4066925 | AG91: 120.892765 | AH91: 17040.92526
A92: 181 | B92: 26 | C92: 90.5 | D92: 13.79420773 | J92: 165 | L92: 0 | M92: 139.7023975 | N92: 288.3167718 | O92: 505.9137912 | P92: 968.0979714 | Q92: 1600.238877 | R92: 2039.356659 | S92: 2497.04489 | T92: 3702.292246 | U92: 4849.011537 | V92: 16520.74563 | X92: 0 | Y92: 5121.103682 | Z92: 4095.225823 | AA92: 2858.162035 | AB92: 1952.20814 | AC92: 1194.961361 | AD92: 659.2099551 | AE92: 389.2195116 | AF92: 230.9330494 | AG92: 90.53520892 | AH92: 16481.80745
A93: 182 | B93: 9 | C93: 91 | D93: 7.577793665 | J93: 167 | L93: 0 | M93: 86.94489799 | N93: 235.117084 | O93: 478.8510962 | P93: 840.5409039 | Q93: 1544.32093 | R93: 2064.597584 | S93: 2520.028589 | T93: 3679.759558 | U93: 5122.432441 | V93: 16670.24081 | X93: 0 | Y93: 4977.640904 | Z93: 4070.388917 | AA93: 2933.812385 | AB93: 2010.403225 | AC93: 1200.062954 | AD93: 693.7867215 | AE93: 419.2440368 | AF93: 236.7258316 | AG93: 119.8575217 | AH93: 16617.60914
B94: =SUM(B64:B93) -> 9974 | J94: 163 | L94: 0 | M94: 93.88769217 | N94: 320.3462318 | O94: 492.7586747 | P94: 997.0721682 | Q94: 1631.880971 | R94: 2061.218848 | S94: 2564.701505 | T94: 4035.416184 | U94: 4929.77657 | V94: 16349.56267 | X94: 0 | Y94: 4986.138847 | Z94: 4152.424317 | AA94: 2863.642031 | AB94: 2111.243401 | AC94: 1244.621773 | AD94: 733.2753754 | AE94: 375.422953 | AF94: 250.7423315 | AG94: 72.36235304 | AH94: 16396.13939
J95: 164 | L95: 0 | M95: 82.51444972 | N95: 294.1081064 | O95: 509.0606026 | P95: 1011.572153 | Q95: 1605.85804 | R95: 2056.020687 | S95: 2411.948749 | T95: 3796.735314 | U95: 5105.381488 | V95: 16367.09727 | X95: 0 | Y95: 5007.771601 | Z95: 3983.689921 | AA95: 2891.941389 | AB95: 1823.863093 | AC95: 1277.509676 | AD95: 769.6031639 | AE95: 359.517193 | AF95: 222.9734669 | AG95: 103.4890183 | AH95: 16903.10726
J96: 164 | L96: 0 | M96: 70.85594572 | N96: 252.2027559 | O96: 510.9484823 | P96: 980.8644612 | Q96: 1594.420757 | R96: 2030.45166 | S96: 2573.114204 | T96: 3657.330672 | U96: 4725.581566 | V96: 16417.8331 | X96: 0 | Y96: 4757.343634 | Z96: 4020.281811 | AA96: 2993.821217 | AB96: 1932.555348 | AC96: 1192.911788 | AD96: 733.102781 | AE96: 406.4988554 | AF96: 170.4784967 | AG96: 76.81800159 | AH96: 16285.84302
J97: 169 | L97: 0 | M97: 73.36985515 | N97: 300.6955968 | O97: 533.1967095 | P97: 910.4482105 | Q97: 1556.626692 | R97: 2100.574682 | S97: 2481.057025 | T97: 3471.050329 | U97: 4750.87421 | V97: 16864.38018 | X97: 0 | Y97: 5159.829121 | Z97: 4219.885219 | AA97: 2845.076732 | AB97: 1821.096443 | AC97: 1233.610265 | AD97: 686.9222474 | AE97: 405.1271391 | AF97: 227.6089481 | AG97: 65.76788177 | AH97: 17268.3105
J98: 171 | L98: 0 | M98: 33.45932221 | N98: 259.5926746 | O98: 484.2192197 | P98: 946.2518368 | Q98: 1679.731883 | R98: 2187.271447 | S98: 2567.037997 | T98: 3647.35753 | U98: 4497.320069 | V98: 17065.08827 | X98: 0 | Y98: 5016.254972 | Z98: 4223.229091 | AA98: 2942.875788 | AB98: 2052.800158 | AC98: 1286.84348 | AD98: 639.3557746 | AE98: 454.0147883 | AF98: 200.5608225 | AG98: 76.7618212 | AH98: 16407.61242
J99: 166 | L99: 0 | M99: 90.59141938 | N99: 213.7571519 | O99: 477.0577852 | P99: 927.6957019 | Q99: 1532.553291 | R99: 2114.169085 | S99: 2518.182172 | T99: 3710.184094 | U99: 5801.274458 | V99: 16577.76573 | X99: 0 | Y99: 4972.889909 | Z99: 4155.774206 | AA99: 3060.697648 | AB99: 2026.451653 | AC99: 1309.560968 | AD99: 746.2913024 | AE99: 431.8538723 | AF99: 232.6303524 | AG99: 62.76662962 | AH99: 16593.41647
J100: 163 | L100: 0 | M100: 94.45708846 | N100: 308.1579211 | O100: 455.6670655 | P100: 900.5114634 | Q100: 1655.580133 | R100: 2070.899499 | S100: 2422.550964 | T100: 3608.400619 | U100: 5084.1971 | V100: 16333.75616 | X100: 0 | Y100: 5211.161396 | Z100: 4045.305531 | AA100: 2939.869185 | AB100: 2044.667052 | AC100: 1266.247691 | AD100: 745.3639882 | AE100: 429.8702728 | AF100: 214.7375828 | AG100: 63.39557611 | AH100: 16649.59949
J101: 181 | L101: 0 | M101: 106.5653363 | N101: 262.4789427 | O101: 601.8734426 | P101: 901.6430941 | Q101: 1637.232242 | R101: 2077.262427 | S101: 2630.090486 | T101: 3644.285274 | U101: 4755.785739 | V101: 18090.49715 | X101: 0 | Y101: 4926.66394 | Z101: 3990.525173 | AA101: 3292.828428 | AB101: 1938.386999 | AC101: 1216.287973 | AD101: 683.7990355 | AE101: 420.9705658 | AF101: 253.538895 | AG101: 109.1161489 | AH101: 17197.80314
J102: 162 | L102: 0 | M102: 77.88128554 | N102: 271.3575714 | O102: 501.1721874 | P102: 989.6424173 | Q102: 1687.005881 | R102: 2116.083536 | S102: 2560.622981 | T102: 3883.387611 | U102: 4882.871269 | V102: 16158.17786 | X102: 0 | Y102: 5124.698547 | Z102: 4226.686195 | AA102: 2865.718593 | AB102: 1969.018417 | AC102: 1213.481455 | AD102: 797.0916987 | AE102: 411.5537087 | AF102: 236.5662767 | AG102: 111.8130904 | AH102: 17141.23637
J103: 174 | L103: 0 | M103: 84.98837064 | N103: 241.0266907 | O103: 494.6098681 | P103: 987.1595948 | Q103: 1548.998318 | R103: 2058.762996 | S103: 2424.914791 | T103: 3732.581259 | U103: 5335.873846 | V103: 17369.25719 | X103: 0 | Y103: 5022.438472 | Z103: 4196.332938 | AA103: 2982.658226 | AB103: 2057.051322 | AC103: 1239.567302 | AD103: 718.0889061 | AE103: 404.0666125 | AF103: 240.6477012 | AG103: 97.35040233 | AH103: 16183.84864
J104: 155 | L104: 0 | M104: 122.9091758 | N104: 246.9917772 | O104: 499.7805849 | P104: 940.8269225 | Q104: 1549.898449 | R104: 2135.896422 | S104: 2564.395227 | T104: 3682.308934 | U104: 4885.363163 | V104: 15453.86118 | X104: 0 | Y104: 5011.527118 | Z104: 4036.257202 | AA104: 3055.022724 | AB104: 1855.221603 | AC104: 1194.819271 | AD104: 807.5616154 | AE104: 373.614756 | AF104: 257.3955564 | AG104: 62.41223745 | AH104: 16054.21442
J105: 169 | L105: 0 | M105: 70.05569378 | N105: 310.3957527 | O105: 456.5957994 | P105: 881.9000705 | Q105: 1575.120175 | R105: 2081.454552 | S105: 2404.901361 | T105: 3732.15633 | U105: 4745.569638 | V105: 16936.95263 | X105: 0 | Y105: 5135.182217 | Z105: 4195.934222 | AA105: 2892.909254 | AB105: 1951.271446 | AC105: 1233.437466 | AD105: 645.7469591 | AE105: 415.347261 | AF105: 220.3675597 | AG105: 117.8220236 | AH105: 16778.36385
J106: 164 | L106: 0 | M106: 131.7676371 | N106: 292.9528038 | O106: 488.955497 | P106: 987.4325761 | Q106: 1555.583968 | R106: 2095.169354 | S106: 2392.680853 | T106: 3733.158663 | U106: 5126.975165 | V106: 16385.47967 | X106: 0 | Y106: 5127.086922 | Z106: 4112.692001 | AA106: 3027.500416 | AB106: 1931.798059 | AC106: 1228.120666 | AD106: 707.3814118 | AE106: 371.3909165 | AF106: 253.3115911 | AG106: 112.0654955 | AH106: 16849.27701
J107: 171 | L107: 0 | M107: 86.49816884 | N107: 246.9421606 | O107: 485.4640319 | P107: 938.6771724 | Q107: 1550.931387 | R107: 2204.23051 | S107: 2435.841356 | T107: 3516.294498 | U107: 4857.620495 | V107: 17091.44737 | X107: 0 | Y107: 4991.703604 | Z107: 4218.501472 | AA107: 2962.1706 | AB107: 1918.677883 | AC107: 1225.412586 | AD107: 742.9130802 | AE107: 378.0017496 | AF107: 199.0522542 | AG107: 76.41640934 | AH107: 16819.46884
J108: 170 | L108: 0 | M108: 113.5517809 | N108: 293.0373598 | O108: 474.4396121 | P108: 990.1530924 | Q108: 1568.749075 | R108: 2099.839279 | S108: 2514.785165 | T108: 3744.069331 | U108: 5428.623437 | V108: 16951.97368 | X108: 0 | Y108: 4879.016627 | Z108: 4101.081858 | AA108: 2939.255442 | AB108: 1933.405643 | AC108: 1244.067261 | AD108: 714.9330018 | AE108: 400.6203775 | AF108: 180.3158632 | AG108: 80.01091782 | AH108: 18057.49379
J109: 168 | L109: 0 | M109: 86.72221036 | N109: 207.406349 | O109: 435.199188 | P109: 989.1945335 | Q109: 1552.47833 | R109: 2085.249029 | S109: 2411.0558 | T109: 3540.063745 | U109: 5224.74363 | V109: 16772.11948 | X109: 0 | Y109: 5143.818496 | Z109: 4149.208698 | AA109: 3053.428733 | AB109: 1793.795381 | AC109: 1256.18006 | AD109: 724.1581336 | AE109: 367.5947665 | AF109: 224.8038528 | AG109: 110.7453379 | AH109: 16784.7261
J110: 161 | L110: 0 | M110: 95.48031912 | N110: 263.3766662 | O110: 524.0949092 | P110: 934.7562736 | Q110: 1541.128793 | R110: 2090.537309 | S110: 2524.051131 | T110: 3579.432776 | U110: 4956.740763 | V110: 16090.90677 | X110: 0 | Y110: 5192.495601 | Z110: 4128.826623 | AA110: 2859.549017 | AB110: 2053.125917 | AC110: 1219.16155 | AD110: 656.6452623 | AE110: 433.8701609 | AF110: 236.738497 | AG110: 77.12168757 | AH110: 16412.02617
J111: 174 | L111: 0 | M111: 100.2948411 | N111: 290.4230503 | O111: 539.394341 | P111: 936.6732187 | Q111: 1685.834473 | R111: 2105.859253 | S111: 2541.177905 | T111: 3613.258835 | U111: 5039.964753 | V111: 17353.88183 | X111: 0 | Y111: 4700.050264 | Z111: 4222.14048 | AA111: 2887.919861 | AB111: 2072.291921 | AC111: 1228.661541 | AD111: 760.4542401 | AE111: 409.4175316 | AF111: 183.3419628 | AG111: 104.2708271 | AH111: 17350.27621
J112: 165 | L112: 0 | M112: 124.6295096 | N112: 243.9174193 | O112: 475.3566127 | P112: 943.0354158 | Q112: 1625.797916 | R112: 2010.609653 | S112: 2468.394438 | T112: 3890.674341 | U112: 5383.043545 | V112: 16464.75377 | X112: 0 | Y112: 4919.622281 | Z112: 4224.766034 | AA112: 2925.678864 | AB112: 2000.019747 | AC112: 1187.588438 | AD112: 739.0258628 | AE112: 372.8798623 | AF112: 230.9324932 | AG112: 127.2735007 | AH112: 16631.23731
J113: 172 | L113: 0 | M113: 120.9206599 | N113: 250.8722478 | O113: 505.468163 | P113: 937.5605338 | Q113: 1620.706524 | R113: 1999.794091 | S113: 2565.985458 | T113: 3720.124932 | U113: 4921.974382 | V113: 17183.58334 | X113: 0 | Y113: 5020.698687 | Z113: 4121.861716 | AA113: 2879.029066 | AB113: 2104.719778 | AC113: 1263.767196 | AD113: 717.8004375 | AE113: 348.0904536 | AF113: 241.9187553 | AG113: 86.81866821 | AH113: 16461.9335
J114: 169 | L114: 0 | M114: 102.950196 | N114: 331.9014319 | O114: 444.6012138 | P114: 951.8557355 | Q114: 1499.909494 | R114: 2105.21069 | S114: 2525.998563 | T114: 3614.240081 | U114: 4998.793057 | V114: 16870.47253 | X114: 0 | Y114: 5044.345932 | Z114: 3904.110941 | AA114: 3071.85852 | AB114: 1946.558107 | AC114: 1158.70122 | AD114: 724.6707512 | AE114: 404.4913324 | AF114: 253.2361276 | AG114: 66.49919158 | AH114: 16888.33972
J115: 162 | L115: 0 | M115: 77.32372606 | N115: 287.686716 | O115: 515.2633805 | P115: 902.8999134 | Q115: 1601.518559 | R115: 2112.734787 | S115: 2690.061148 | T115: 3646.607069 | U115: 6026.452333 | V115: 16199.35863 | X115: 0 | Y115: 4938.037335 | Z115: 4063.414402 | AA115: 2922.87228 | AB115: 1855.071807 | AC115: 1175.72285 | AD115: 725.2626308 | AE115: 418.513905 | AF115: 257.4695629 | AG115: 80.82378988 | AH115: 17133.0824
J116: 166 | L116: 0 | M116: 104.6581754 | N116: 248.2118532 | O116: 535.3380487 | P116: 953.6076019 | Q116: 1670.422487 | R116: 2084.467081 | S116: 2520.995242 | T116: 3812.704356 | U116: 4578.854944 | V116: 16626.72694 | X116: 0 | Y116: 5031.616043 | Z116: 4031.789062 | AA116: 2898.546925 | AB116: 2012.894861 | AC116: 1204.500996 | AD116: 685.7661954 | AE116: 416.5224364 | AF116: 228.5276435 | AG116: 105.1557743 | AH116: 17216.15387
J117: 166 | L117: 0 | M117: 153.3088794 | N117: 262.9478062 | O117: 504.6830784 | P117: 869.6975364 | Q117: 1679.100067 | R117: 2092.572397 | S117: 2545.662884 | T117: 3680.935157 | U117: 4677.470372 | V117: 16586.54814 | X117: 0 | Y117: 5156.918009 | Z117: 4130.613947 | AA117: 2870.48539 | AB117: 2024.941246 | AC117: 1211.297328 | AD117: 662.643508 | AE117: 369.1902952 | AF117: 222.5839027 | AG117: 80.51840603 | AH117: 16873.14971
J118: 175 | L118: 0 | M118: 70.09970539 | N118: 244.4127861 | O118: 443.0931913 | P118: 954.6932783 | Q118: 1499.322709 | R118: 2036.998992 | S118: 2659.396195 | T118: 3603.036702 | U118: 5246.046147 | V118: 17515.70525 | X118: 0 | Y118: 5076.130609 | Z118: 4359.215014 | AA118: 3019.086234 | AB118: 1839.632335 | AC118: 1223.036526 | AD118: 703.4163396 | AE118: 451.3367172 | AF118: 241.6567318 | AG118: 104.5589122 | AH118: 17127.77935
J119: 177 | L119: 0 | M119: 120.2115978 | N119: 220.5604391 | O119: 492.9796636 | P119: 910.2052878 | Q119: 1580.434175 | R119: 2138.11214 | S119: 2517.149164 | T119: 3386.928502 | U119: 4816.368888 | V119: 17672.74157 | X119: 0 | Y119: 5044.177182 | Z119: 3905.138529 | AA119: 2808.605423 | AB119: 1982.922903 | AC119: 1231.457678 | AD119: 655.1124964 | AE119: 433.1371541 | AF119: 281.3680129 | AG119: 108.0147757 | AH119: 16669.07585
J120: 170 | L120: 0 | M120: 107.3415098 | N120: 235.0958138 | O120: 470.3837637 | P120: 872.8730735 | Q120: 1638.826396 | R120: 2139.082376 | S120: 2647.49734 | T120: 3768.657746 | U120: 5182.776926 | V120: 17004.71571 | X120: 0 | Y120: 4880.238523 | Z120: 3953.897181 | AA120: 2907.789599 | AB120: 1873.826994 | AC120: 1198.309125 | AD120: 678.634578 | AE120: 390.5382125 | AF120: 187.7333697 | AG120: 66.60043156 | AH120: 16431.06475
J121: 166 | L121: 0 | M121: 121.0257331 | N121: 275.8134628 | O121: 457.9672943 | P121: 880.7260015 | Q121: 1574.525673 | R121: 2080.348417 | S121: 2499.943238 | T121: 3654.861141 | U121: 5060.851807 | V121: 16607.53276 | X121: 0 | Y121: 4905.646262 | Z121: 4052.987795 | AA121: 3094.720636 | AB121: 2155.277118 | AC121: 1256.188781 | AD121: 685.6940666 | AE121: 412.5988332 | AF121: 249.3384911 | AG121: 79.98344314 | AH121: 16835.19499
J122: 162 | L122: 0 | M122: 97.12017415 | N122: 219.7628212 | O122: 546.4860456 | P122: 1008.942863 | Q122: 1652.000356 | R122: 2129.9928 | S122: 2461.252583 | T122: 3716.918001 | U122: 5009.41372 | V122: 16193.38436 | X122: 0 | Y122: 5061.353578 | Z122: 4105.687456 | AA122: 2857.330662 | AB122: 1912.190261 | AC122: 1210.417117 | AD122: 726.5436285 | AE122: 405.0643421 | AF122: 224.2341666 | AG122: 113.069833 | AH122: 17547.64453
J123: 156 | L123: 0 | M123: 97.11740413 | N123: 323.4274987 | O123: 460.6112218 | P123: 954.7651715 | Q123: 1604.510176 | R123: 2061.707544 | S123: 2487.493733 | T123: 3599.91835 | U123: 5213.692234 | V123: 15634.63975 | X123: 0 | Y123: 4950.675975 | Z123: 4159.034241 | AA123: 2959.624036 | AB123: 1971.884977 | AC123: 1200.434207 | AD123: 704.5525906 | AE123: 429.8676296 | AF123: 228.9853546 | AG123: 86.05912452 | AH123: 16115.61709
J124: 174 | L124: 0 | M124: 115.299024 | N124: 307.0806636 | O124: 474.4417397 | P124: 1052.000696 | Q124: 1641.277504 | R124: 2095.708054 | S124: 2621.741999 | T124: 3684.679961 | U124: 5083.29684 | V124: 17356.5879 | X124: 0 | Y124: 5136.683091 | Z124: 4171.927112 | AA124: 2892.04463 | AB124: 1924.684097 | AC124: 1150.429765 | AD124: 714.7087698 | AE124: 396.4535516 | AF124: 226.116895 | AG124: 141.2702684 | AH124: 16538.21231
J125: 165 | L125: 0 | M125: 90.36802286 | N125: 277.4517621 | O125: 483.430512 | P125: 915.694349 | Q125: 1572.482295 | R125: 2113.133604 | S125: 2619.62583 | T125: 3711.639109 | U125: 4806.727978 | V125: 16488.71378 | X125: 0 | Y125: 5201.846371 | Z125: 4083.084783 | AA125: 2865.434673 | AB125: 2005.307846 | AC125: 1264.866346 | AD125: 712.1096213 | AE125: 374.8864814 | AF125: 249.4414642 | AG125: 107.8166676 | AH125: 16847.07642
J126: 172 | L126: 0 | M126: 102.5641043 | N126: 208.2003457 | O126: 537.1144947 | P126: 950.2159775 | Q126: 1538.063204 | R126: 2125.57235 | S126: 2490.996695 | T126: 3514.931442 | U126: 5244.8899 | V126: 17150.67643 | X126: 0 | Y126: 5089.867377 | Z126: 3949.036252 | AA126: 3054.788679 | AB126: 2017.443394 | AC126: 1199.613838 | AD126: 718.3535936 | AE126: 387.2752824 | AF126: 200.1424636 | AG126: 122.816946 | AH126: 16698.75742
J127: 168 | L127: 0 | M127: 104.1957593 | N127: 285.7977783 | O127: 451.41474 | P127: 967.8596214 | Q127: 1669.805962 | R127: 2048.68109 | S127: 2545.084859 | T127: 3749.236125 | U127: 5095.306869 | V127: 16794.5765 | X127: 0 | Y127: 4958.291482 | Z127: 3973.683817 | AA127: 3010.481912 | AB127: 1923.785232 | AC127: 1244.5668 | AD127: 684.2889743 | AE127: 377.6371934 | AF127: 164.0505989 | AG127: 83.25145583 | AH127: 16421.27231
J128: 161 | L128: 0 | M128: 73.47574886 | N128: 317.9584865 | O128: 512.3563871 | P128: 889.9688732 | Q128: 1657.722363 | R128: 2058.943286 | S128: 2518.932133 | T128: 3669.257959 | U128: 5242.309004 | V128: 16092.92298 | X128: 0 | Y128: 4753.212728 | Z128: 4274.727364 | AA128: 3072.5261 | AB128: 1961.394222 | AC128: 1258.432868 | AD128: 753.3346269 | AE128: 385.3292793 | AF128: 220.9933454 | AG128: 88.162157 | AH128: 16761.77469
J129: 162 | L129: 0 | M129: 31.51642509 | N129: 259.2094446 | O129: 539.5996848 | P129: 939.8809796 | Q129: 1537.485068 | R129: 2040.635103 | S129: 2400.76935 | T129: 3671.789741 | U129: 5449.732834 | V129: 16172.91411 | X129: 0 | Y129: 5081.014898 | Z129: 4183.630214 | AA129: 2989.369038 | AB129: 1993.927947 | AC129: 1237.642313 | AD129: 753.7057269 | AE129: 365.3207432 | AF129: 219.7849365 | AG129: 92.8622366 | AH129: 17027.70046
J130: 171 | L130: 0 | M130: 127.5373492 | N130: 247.3669874 | O130: 498.1576448 | P130: 1006.049405 | Q130: 1493.613862 | R130: 2034.860262 | S130: 2440.676303 | T130: 3724.198473 | U130: 5625.701631 | V130: 17107.13826 | X130: 0 | Y130: 5091.445031 | Z130: 4134.029292 | AA130: 3085.648068 | AB130: 1964.796762 | AC130: 1175.219152 | AD130: 715.4233335 | AE130: 431.8192703 | AF130: 218.7476317 | AG130: 28.93724123 | AH130: 16505.60426
J131: =ROUND(V131/100,0) -> 165 | L131: 0 | M131: 76.67154751 | N131: 261.3640948 | O131: 445.898621 | P131: 953.8210839 | Q131: 1670.944441 | R131: 2114.093011 | S131: 2628.919999 | T131: 3628.375436 | U131: 4860.1053 | V131: 16516.98903 | X131: 0 | Y131: 4981.307185 | Z131: 4144.919509 | AA131: 2876.580012 | AB131: 2004.526061 | AC131: 1141.976526 | AD131: 758.3257211 | AE131: 386.4216707 | AF131: 211.3064992 | AG131: 110.9523793 | AH131: 16861.43813
J132: 170 | L132: 0 | M132: 155.848873 | N132: 245.1343078 | O132: 503.0276289 | P132: 891.4191 | Q132: 1685.801983 | R132: 2215.288975 | S132: 2472.512787 | T132: 3720.751325 | U132: 5772.312352 | V132: 16998.29456 | X132: 0 | Y132: 4948.788462 | Z132: 4031.205693 | AA132: 2862.11444 | AB132: 1946.469861 | AC132: 1242.531015 | AD132: 764.9517826 | AE132: 396.2953632 | AF132: 259.4595463 | AG132: 30.54059899 | AH132: 17462.7716
J133: 161 | L133: 0 | M133: 83.34353675 | N133: 267.2631384 | O133: 463.2995476 | P133: 956.4500923 | Q133: 1582.925277 | R133: 1963.856713 | S133: 2569.5873 | T133: 3905.472969 | U133: 5329.618455 | V133: 16107.60543 | X133: 0 | Y133: 4866.121774 | Z133: 4204.095305 | AA133: 3016.796952 | AB133: 1888.018093 | AC133: 1230.878335 | AD133: 717.8999251 | AE133: 397.4621193 | AF133: 264.3422449 | AG133: 76.74461106 | AH133: 15822.06727
J134: 165 | L134: 0 | M134: 118.7212807 | N134: 288.0439792 | O134: 546.5293474 | P134: 948.2392869 | Q134: 1599.478526 | R134: 2070.051433 | S134: 2547.844653 | T134: 3616.456891 | U134: 5369.070518 | V134: 16503.58754 | X134: 0 | Y134: 5043.495909 | Z134: 3854.855631 | AA134: 3013.655268 | AB134: 2012.464151 | AC134: 1225.028902 | AD134: 758.7193202 | AE134: 381.9616397 | AF134: 245.5883648 | AG134: 130.5757568 | AH134: 15800.07404
J135: 167 | L135: 0 | M135: 144.3232071 | N135: 284.8445402 | O135: 439.4196109 | P135: 971.9768119 | Q135: 1657.208046 | R135: 2146.856623 | S135: 2481.154358 | T135: 3736.065088 | U135: 4617.01564 | V135: 16689.62494 | X135: 0 | Y135: 5107.299304 | Z135: 4221.794981 | AA135: 2997.390244 | AB135: 2129.997504 | AC135: 1170.276203 | AD135: 743.6775783 | AE135: 401.1960713 | AF135: 145.1508541 | AG135: 82.51575484 | AH135: 16979.39862
J136: 167 | L136: 0 | M136: 136.3711609 | N136: 294.6719424 | O136: 408.9141882 | P136: 1042.185417 | Q136: 1580.023947 | R136: 2039.553723 | S136: 2479.324868 | T136: 3707.224534 | U136: 5014.341371 | V136: 16694.20826 | X136: 0 | Y136: 4984.545851 | Z136: 4036.809705 | AA136: 3003.839942 | AB136: 2007.428305 | AC136: 1217.765614 | AD136: 684.2972781 | AE136: 386.2685911 | AF136: 239.6970068 | AG136: 95.72686482 | AH136: 16078.88817
J137: 161 | L137: 0 | M137: 84.68721819 | N137: 297.5214683 | O137: 498.7140607 | P137: 914.6061699 | Q137: 1537.914136 | R137: 2119.84029 | S137: 2562.666416 | T137: 3610.211419 | U137: 5103.392019 | V137: 16091.27111 | X137: 0 | Y137: 4992.758307 | Z137: 4119.432835 | AA137: 2977.597365 | AB137: 1970.582796 | AC137: 1249.711931 | AD137: 785.4149405 | AE137: 413.2237198 | AF137: 218.8560165 | AG137: 75.71594155 | AH137: 16553.65289
J138: 161 | L138: 0 | M138: 92.78401285 | N138: 224.8805731 | O138: 568.487911 | P138: 1020.769361 | Q138: 1538.874072 | R138: 2078.322824 | S138: 2491.357903 | T138: 3839.562772 | U138: 5305.383599 | V138: 16063.11742 | X138: 0 | Y138: 5061.863244 | Z138: 4068.18237 | AA138: 2880.3628 | AB138: 2011.67359 | AC138: 1175.487552 | AD138: 582.9377275 | AE138: 375.1258843 | AF138: 197.5566375 | AG138: 105.8257137 | AH138: 16939.05281
J139: 166 | L139: 0 | M139: 137.8009005 | N139: 298.708104 | O139: 568.6895576 | P139: 911.2642982 | Q139: 1531.534676 | R139: 2137.394393 | S139: 2457.232516 | T139: 3622.481679 | U139: 4904.036065 | V139: 16587.36314 | X139: 0 | Y139: 5061.85737 | Z139: 4082.034769 | AA139: 2993.003452 | AB139: 1965.226047 | AC139: 1311.110109 | AD139: 735.8143863 | AE139: 376.6476787 | AF139: 186.5015909 | AG139: 83.16792457 | AH139: 17163.573
J140: 170 | L140: 0 | M140: 101.1601865 | N140: 235.0308619 | O140: 531.2641976 | P140: 990.9587079 | Q140: 1536.000353 | R140: 2125.341622 | S140: 2506.375337 | T140: 3794.257708 | U140: 5030.82045 | V140: 17032.16796 | X140: 0 | Y140: 5019.912191 | Z140: 4170.191399 | AA140: 3013.510252 | AB140: 2088.585292 | AC140: 1205.106001 | AD140: 743.3887549 | AE140: 401.04187 | AF140: 231.3606877 | AG140: 57.72897962 | AH140: 16374.38034
J141: 166 | L141: 0 | M141: 92.69870983 | N141: 240.2304653 | O141: 501.2165584 | P141: 929.33442 | Q141: 1652.283493 | R141: 2271.438063 | S141: 2527.731718 | T141: 3575.240773 | U141: 4860.10637 | V141: 16617.32722 | X141: 0 | Y141: 4811.764841 | Z141: 4250.71772 | AA141: 2936.007746 | AB141: 2075.10455 | AC141: 1252.170058 | AD141: 653.6520827 | AE141: 450.3487938 | AF141: 292.5204105 | AG141: 90.07287417 | AH141: 17224.98539
J142: 160 | L142: 0 | M142: 84.86920866 | N142: 244.7566538 | O142: 509.4468879 | P142: 966.3382891 | Q142: 1622.541914 | R142: 2103.604079 | S142: 2568.930404 | T142: 3596.813712 | U142: 5398.061272 | V142: 16030.70281 | X142: 0 | Y142: 4965.581321 | Z142: 4053.068046 | AA142: 2866.483351 | AB142: 1979.596935 | AC142: 1150.837665 | AD142: 701.8482957 | AE142: 413.853606 | AF142: 155.4989514 | AG142: 81.82929398 | AH142: 16867.07934
J143: 170 | L143: 0 | M143: 85.50916283 | N143: 261.8478358 | O143: 541.627138 | P143: 999.436753 | Q143: 1496.843294 | R143: 2092.259724 | S143: 2603.091289 | T143: 3654.79715 | U143: 4501.040533 | V143: 17025.57882 | X143: 0 | Y143: 4985.404661 | Z143: 4144.294436 | AA143: 2818.478091 | AB143: 2037.812607 | AC143: 1218.063242 | AD143: 684.5471903 | AE143: 441.8137788 | AF143: 220.481922 | AG143: 104.427496 | AH143: 16320.1659
J144: 169 | L144: 0 | M144: 109.8377113 | N144: 290.5958365 | O144: 532.7810475 | P144: 925.7955049 | Q144: 1636.204933 | R144: 2095.905124 | S144: 2362.501989 | T144: 3623.739788 | U144: 5308.770342 | V144: 16875.95747 | X144: 0 | Y144: 5048.482431 | Z144: 4131.279612 | AA144: 3085.274193 | AB144: 1951.638049 | AC144: 1269.009668 | AD144: 600.1568981 | AE144: 422.774713 | AF144: 208.4895284 | AG144: 95.00603873 | AH144: 16674.32713
J145: 169 | L145: 0 | M145: 89.99540891 | N145: 285.9980741 | O145: 465.3974029 | P145: 953.5910368 | Q145: 1565.678004 | R145: 2107.045223 | S145: 2416.608176 | T145: 3622.133926 | U145: 4629.645788 | V145: 16857.28713 | X145: 0 | Y145: 4871.949655 | Z145: 4100.192598 | AA145: 2863.988548 | AB145: 1859.4887 | AC145: 1242.812086 | AD145: 690.8717077 | AE145: 393.6881006 | AF145: 220.3657686 | AG145: 89.33782818 | AH145: 16618.00908
J146: 165 | L146: 0 | M146: 104.5212317 | N146: 246.0688531 | O146: 449.4580476 | P146: 933.5801182 | Q146: 1609.824178 | R146: 2124.205458 | S146: 2376.082321 | T146: 3796.411377 | U146: 4776.585532 | V146: 16477.39241 | X146: 0 | Y146: 5007.670142 | Z146: 4159.08521 | AA146: 2980.751458 | AB146: 2014.693108 | AC146: 1205.400718 | AD146: 812.0787087 | AE146: 394.2401479 | AF146: 273.328186 | AG146: 65.64177672 | AH146: 16991.71803
J147: 165 | L147: 0 | M147: 82.55397033 | N147: 251.9982068 | O147: 482.3234537 | P147: 870.7687431 | Q147: 1653.849892 | R147: 2132.490494 | S147: 2365.924574 | T147: 3655.873937 | U147: 5073.587909 | V147: 16504.93372 | X147: 0 | Y147: 4942.926574 | Z147: 4041.28448 | AA147: 2972.624831 | AB147: 1941.618765 | AC147: 1267.700724 | AD147: 679.573566 | AE147: 380.4369136 | AF147: 232.5782634 | AG147: 74.01877952 | AH147: 16258.88231
J148: 155 | L148: 0 | M148: 152.5136065 | N148: 217.3274821 | O148: 494.5173836 | P148: 876.0085626 | Q148: 1620.561254 | R148: 1946.761551 | S148: 2397.943378 | T148: 3883.397716 | U148: 5113.603972 | V148: 15465.21508 | X148: 0 | Y148: 5112.191295 | Z148: 4181.955151 | AA148: 3085.934171 | AB148: 1961.078034 | AC148: 1250.954015 | AD148: 686.5925685 | AE148: 401.0937809 | AF148: 215.3577922 | AG148: 98.00372053 | AH148: 16437.02466
J149: 163 | L149: 0 | M149: 72.97403248 | N149: 239.7296033 | O149: 472.7443631 | P149: 905.1652647 | Q149: 1638.038054 | R149: 2057.122585 | S149: 2467.22137 | T149: 3670.967407 | U149: 5181.203062 | V149: 16310.67231 | X149: 0 | Y149: 5044.737666 | Z149: 3953.695702 | AA149: 2922.462834 | AB149: 1931.103602 | AC149: 1287.333024 | AD149: 742.5470681 | AE149: 435.8703486 | AF149: 251.8821519 | AG149: 90.82879002 | AH149: 15953.83091
J150: 164 | L150: 0 | M150: 32.13865583 | N150: 278.3212354 | O150: 461.9278901 | P150: 1003.774335 | Q150: 1817.36947 | R150: 2080.50338 | S150: 2352.346544 | T150: 3667.379835 | U150: 5340.96799 | V150: 16400.70512 | X150: 0 | Y150: 5074.76015 | Z150: 4043.273113 | AA150: 2818.4488 | AB150: 1906.388929 | AC150: 1176.811367 | AD150: 731.9831565 | AE150: 411.9521083 | AF150: 246.0738793 | AG150: 92.18136519 | AH150: 16288.27907
J151: 172 | L151: 0 | M151: 143.2293166 | N151: 230.4374097 | O151: 454.1453981 | P151: 972.9636525 | Q151: 1471.547281 | R151: 2139.696191 | S151: 2502.335717 | T151: 3814.198839 | U151: 4857.198064 | V151: 17219.37988 | X151: 0 | Y151: 4918.949088 | Z151: 3972.462972 | AA151: 2780.590629 | AB151: 1934.919109 | AC151: 1226.449262 | AD151: 765.714671 | AE151: 422.1802991 | AF151: 225.1764675 | AG151: 93.60960103 | AH151: 16273.79458
J152: 167 | L152: 0 | M152: 104.7305308 | N152: 202.0434519 | O152: 563.3842915 | P152: 943.2242878 | Q152: 1529.214238 | R152: 2140.047081 | S152: 2491.474051 | T152: 3614.882204 | U152: 4838.56012 | V152: 16727.27539 | X152: 0 | Y152: 5045.973248 | Z152: 4037.815967 | AA152: 3214.137419 | AB152: 2083.2031 | AC152: 1163.649847 | AD152: 675.2346209 | AE152: 430.0051895 | AF152: 249.7789797 | AG152: 81.43882912 | AH152: 17167.0334
J153: 167 | L153: 0 | M153: 90.17704922 | N153: 276.6353488 | O153: 431.2940239 | P153: 945.797531 | Q153: 1545.627573 | R153: 2142.318146 | S153: 2519.168142 | T153: 3658.363873 | U153: 5113.325749 | V153: 16673.00305 | X153: 0 | Y153: 4873.050762 | Z153: 4052.958923 | AA153: 2875.364321 | AB153: 1970.25063 | AC153: 1243.022315 | AD153: 752.3534541 | AE153: 382.6399657 | AF153: 256.8255165 | AG153: 26.72403563 | AH153: 16170.22718
J154: 173 | L154: 0 | M154: 106.6676427 | N154: 271.2336016 | O154: 492.4156802 | P154: 881.4267841 | Q154: 1509.01831 | R154: 2171.50585 | S154: 2494.088149 | T154: 3683.307638 | U154: 5006.370667 | V154: 17335.08224 | X154: 0 | Y154: 4923.09806 | Z154: 4128.79812 | AA154: 3031.542912 | AB154: 2057.590534 | AC154: 1166.765954 | AD154: 725.6800473 | AE154: 396.667068 | AF154: 247.7676292 | AG154: 108.7682692 | AH154: 17306.93135
J155: 166 | L155: 0 | M155: 106.1105767 | N155: 259.5486348 | O155: 479.0484532 | P155: 1063.362931 | Q155: 1524.789474 | R155: 2144.934243 | S155: 2546.582628 | T155: 3640.920746 | U155: 4927.330566 | V155: 16643.91871 | X155: 0 | Y155: 5084.25025 | Z155: 4205.117362 | AA155: 2965.5045 | AB155: 1893.655047 | AC155: 1236.211446 | AD155: 619.6017396 | AE155: 427.2023281 | AF155: 234.0293872 | AG155: 69.08365279 | AH155: 16286.73209
J156: 164 | L156: 0 | M156: 128.2223657 | N156: 230.516233 | O156: 500.4842993 | P156: 960.9426325 | Q156: 1550.476805 | R156: 2093.238955 | S156: 2475.474514 | T156: 3565.655123 | U156: 5191.166388 | V156: 16418.55492 | X156: 0 | Y156: 4885.387059 | Z156: 4145.733819 | AA156: 2893.776738 | AB156: 1919.123597 | AC156: 1177.160266 | AD156: 684.359518 | AE156: 397.3793624 | AF156: 209.8728595 | AG156: 61.68979971 | AH156: 16752.53926
J157: 164 | L157: 0 | M157: 119.6343946 | N157: 313.8269625 | O157: 562.8498253 | P157: 960.4338946 | Q157: 1639.577175 | R157: 2069.752362 | S157: 2471.371891 | T157: 3593.869928 | U157: 4927.578407 | V157: 16424.67128 | X157: 0 | Y157: 5156.434924 | Z157: 4160.349999 | AA157: 2879.724387 | AB157: 2042.701722 | AC157: 1237.939857 | AD157: 720.864494 | AE157: 443.0781328 | AF157: 211.4238066 | AG157: 135.1312658 | AH157: 16613.25672
J158: 168 | L158: 0 | M158: 66.48578216 | N158: 223.4747589 | O158: 495.399674 | P158: 962.8961175 | Q158: 1549.859977 | R158: 2082.160558 | S158: 2511.45386 | T158: 3669.13006 | U158: 5206.363204 | V158: 16774.15918 | X158: 0 | Y158: 5187.120785 | Z158: 4035.040288 | AA158: 2839.9434 | AB158: 1970.061602 | AC158: 1134.962847 | AD158: 710.9510191 | AE158: 391.3425433 | AF158: 221.8448067 | AG158: 90.08760386 | AH158: 16813.44636
J159: 167 | L159: 0 | M159: 94.14475843 | N159: 276.7682915 | O159: 456.4197292 | P159: 968.9828722 | Q159: 1594.566559 | R159: 2207.365127 | S159: 2370.808289 | T159: 3765.879272 | U159: 4946.6489 | V159: 16714.16302 | X159: 0 | Y159: 5004.694718 | Z159: 4127.50833 | AA159: 2933.280026 | AB159: 1996.619047 | AC159: 1253.477002 | AD159: 737.3703361 | AE159: 381.8080851 | AF159: 249.4706676 | AG159: 135.0316184 | AH159: 17248.13657
J160: 169 | L160: 0 | M160: 107.068371 | N160: 265.8036684 | O160: 514.3169526 | P160: 1010.0538 | Q160: 1570.212125 | R160: 2158.75252 | S160: 2461.810906 | T160: 3857.768283 | U160: 5702.836533 | V160: 16869.284 | X160: 0 | Y160: 4970.540108 | Z160: 4214.536512 | AA160: 2901.348159 | AB160: 1964.813801 | AC160: 1254.763954 | AD160: 679.3948469 | AE160: 386.8948831 | AF160: 198.2468497 | AG160: 134.8796118 | AH160: 16063.18966
J161: 170 | L161: 0 | M161: 73.60411328 | N161: 274.8311783 | O161: 460.6592844 | P161: 961.4095751 | Q161: 1550.376761 | R161: 2130.309377 | S161: 2513.677556 | T161: 3431.918053 | U161: 5236.395524 | V161: 16971.58323 | X161: 0 | Y161: 5101.27918 | Z161: 4210.469146 | AA161: 2865.612266 | AB161: 2053.084761 | AC161: 1181.428143 | AD161: 664.2097296 | AE161: 427.4874689 | AF161: 221.5671472 | AG161: 79.06543522 | AH161: 15735.73653
J162: 174 | L162: 0 | M162: 115.7438495 | N162: 245.9611072 | O162: 512.0107281 | P162: 1030.896348 | Q162: 1579.853223 | R162: 2094.251611 | S162: 2520.265786 | T162: 3749.933626 | U162: 5093.21893 | V162: 17376.79774 | X162: 0 | Y162: 4964.483822 | Z162: 4298.11191 | AA162: 2943.719665 | AB162: 1903.834724 | AC162: 1278.549223 | AD162: 692.2278896 | AE162: 397.631445 | AF162: 197.9601761 | AG162: 88.87014065 | AH162: 17083.34927
J163: 164 | L163: 0 | M163: 116.1075437 | N163: 285.4965295 | O163: 497.6404464 | P163: 1008.098737 | Q163: 1523.546623 | R163: 2188.957077 | S163: 2523.865225 | T163: 3723.647096 | U163: 4622.660395 | V163: 16410.29803 | X163: 0 | Y163: 4985.788548 | Z163: 3992.407474 | AA163: 2800.340188 | AB163: 1810.493914 | AC163: 1191.867742 | AD163: 731.0234195 | AE163: 389.067828 | AF163: 262.0455024 | AG163: 81.51784057 | AH163: 16439.85084
J164: 171 | L164: 0 | M164: 89.75078336 | N164: 270.5084398 | O164: 507.3193385 | P164: 1051.932835 | Q164: 1469.88593 | R164: 2157.056986 | S164: 2499.321347 | T164: 3713.688874 | U164: 6086.955811 | V164: 17129.26038 | X164: 0 | Y164: 5003.938669 | Z164: 4125.94385 | AA164: 2994.68617 | AB164: 1898.563494 | AC164: 1267.992895 | AD164: 736.7573253 | AE164: 418.0318518 | AF164: 229.5954229 | AG164: 75.28139728 | AH164: 16911.34001
J165: 155 | L165: 0 | M165: 86.01849396 | N165: 250.6216257 | O165: 443.4179937 | P165: 1007.804526 | Q165: 1585.170003 | R165: 2062.533053 | S165: 2439.497116 | T165: 3749.726549 | U165: 4761.26211 | V165: 15493.95723 | X165: 0 | Y165: 4994.577852 | Z165: 4075.370228 | AA165: 2844.161675 | AB165: 1931.681072 | AC165: 1178.117347 | AD165: 645.1608506 | AE165: 372.3231654 | AF165: 233.565137 | AG165: 89.92402593 | AH165: 16379.22819
J166: 172 | L166: 0 | M166: 111.2478692 | N166: 254.7996006 | O166: 444.9853914 | P166: 847.9068882 | Q166: 1563.168489 | R166: 2054.154999 | S166: 2471.590969 | T166: 3482.184484 | U166: 4917.580321 | V166: 17215.75572 | X166: 0 | Y166: 4930.082833 | Z166: 3883.288782 | AA166: 3003.411172 | AB166: 1935.292487 | AC166: 1293.212299 | AD166: 668.894745 | AE166: 385.6423768 | AF166: 254.2525618 | AG166: 77.68211186 | AH166: 17193.49893
J167: 171 | L167: 0 | M167: 95.8014158 | N167: 286.3028638 | O167: 570.3000105 | P167: 1015.313408 | Q167: 1621.979309 | R167: 2202.838407 | S167: 2486.865012 | T167: 3453.828739 | U167: 4649.060744 | V167: 17114.82973 | X167: 0 | Y167: 4919.792349 | Z167: 4163.91169 | AA167: 3068.668575 | AB167: 1889.607301 | AC167: 1147.427104 | AD167: 701.6750569 | AE167: 383.3382994 | AF167: 237.0682427 | AG167: 105.0156261 | AH167: 17000.16816
J168: 179 | L168: 0 | M168: 77.76654643 | N168: 319.3139824 | O168: 533.0868174 | P168: 827.4233603 | Q168: 1548.445109 | R168: 2095.790379 | S168: 2516.975213 | T168: 3649.442295 | U168: 4999.476323 | V168: 17850.43282 | X168: 0 | Y168: 4897.023902 | Z168: 4143.840126 | AA168: 3129.430175 | AB168: 2079.242167 | AC168: 1257.949245 | AD168: 745.0306885 | AE168: 403.7140519 | AF168: 257.2240747 | AG168: 100.9974875 | AH168: 17289.28644
J169: 169 | L169: 0 | M169: 94.31125911 | N169: 283.4490914 | O169: 495.8700239 | P169: 948.5094327 | Q169: 1507.371748 | R169: 2061.446499 | S169: 2345.530249 | T169: 3792.951588 | U169: 4676.678846 | V169: 16918.617 | X169: 0 | Y169: 4953.644824 | Z169: 4239.218771 | AA169: 2893.636334 | AB169: 2025.538037 | AC169: 1259.860735 | AD169: 740.9691222 | AE169: 386.7776386 | AF169: 255.2261353 | AG169: 106.6088946 | AH169: 16435.33149
J170: 164 | L170: 0 | M170: 91.64418549 | N170: 276.030551 | O170: 460.2290128 | P170: 920.2916228 | Q170: 1748.552086 | R170: 2188.653444 | S170: 2411.175777 | T170: 3721.491053 | U170: 5437.985263 | V170: 16378.89889 | X170: 0 | Y170: 5007.11098 | Z170: 4146.608468 | AA170: 2875.246581 | AB170: 1940.400193 | AC170: 1196.089147 | AD170: 608.9629595 | AE170: 390.0027568 | AF170: 254.8429848 | AG170: 82.66280555 | AH170: 16299.59306
J171: 164 | L171: 0 | M171: 105.6675167 | N171: 225.1864234 | O171: 498.9845332 | P171: 932.672602 | Q171: 1587.077645 | R171: 2209.405301 | S171: 2473.998141 | T171: 3653.790105 | U171: 5495.319552 | V171: 16436.85105 | X171: 0 | Y171: 4994.917062 | Z171: 4135.360986 | AA171: 3100.083583 | AB171: 1908.744675 | AC171: 1176.887983 | AD171: 662.7379548 | AE171: 400.26799 | AF171: 168.3149798 | AG171: 105.014056 | AH171: 15959.94273
J172: 166 | L172: 0 | M172: 140.9919366 | N172: 239.5221403 | O172: 475.7184292 | P172: 955.2846219 | Q172: 1673.871888 | R172: 2214.524717 | S172: 2557.912472 | T172: 3656.922414 | U172: 4989.327197 | V172: 16643.32956 | X172: 0 | Y172: 5104.712726 | Z172: 4132.114915 | AA172: 2947.216984 | AB172: 2001.188109 | AC172: 1201.914623 | AD172: 741.7418935 | AE172: 439.2763737 | AF172: 209.3064545 | AG172: 96.83256685 | AH172: 17117.34671
J173: 169 | L173: 0 | M173: 151.7460067 | N173: 252.7764265 | O173: 472.4264762 | P173: 891.0689433 | Q173: 1663.63985 | R173: 2115.947929 | S173: 2428.63572 | T173: 3638.554981 | U173: 5250.544594 | V173: 16929.5494 | X173: 0 | Y173: 4983.047368 | Z173: 4063.115969 | AA173: 2897.170737 | AB173: 1952.559134 | AC173: 1203.507333 | AD173: 686.5174811 | AE173: 438.0392122 | AF173: 191.0684453 | AG173: 93.01945618 | AH173: 17208.21598
J174: 166 | L174: 0 | M174: 88.52070187 | N174: 193.103348 | O174: 535.5434431 | P174: 990.1759747 | Q174: 1501.879832 | R174: 2172.152462 | S174: 2482.351786 | T174: 3499.630923 | U174: 5172.980445 | V174: 16552.57864 | X174: 0 | Y174: 4925.081178 | Z174: 4058.179813 | AA174: 2999.31398 | AB174: 1888.177679 | AC174: 1087.926222 | AD174: 697.461323 | AE174: 413.5424602 | AF174: 216.7279317 | AG174: 68.08309081 | AH174: 16288.62488
J175: 170 | L175: 0 | M175: 101.2200075 | N175: 233.4031928 | O175: 489.8104523 | P175: 951.5316014 | Q175: 1623.286901 | R175: 2117.409711 | S175: 2551.165278 | T175: 3795.109168 | U175: 5337.238513 | V175: 17032.49395 | X175: 0 | Y175: 5039.914202 | Z175: 3941.924218 | AA175: 2981.855772 | AB175: 1826.079363 | AC175: 1237.093049 | AD175: 651.03035 | AE175: 381.96262 | AF175: 224.0243683 | AG175: 77.06180369 | AH175: 16423.6453
J176: 166 | L176: 0 | M176: 82.16086385 | N176: 295.2542301 | O176: 503.230311 | P176: 890.3414742 | Q176: 1632.397044 | R176: 2147.479606 | S176: 2539.596337 | T176: 3831.049577 | U176: 4751.716078 | V176: 16641.74418 | X176: 0 | Y176: 5022.121263 | Z176: 4077.966048 | AA176: 2949.593035 | AB176: 2010.416399 | AC176: 1103.134819 | AD176: 651.4838565 | AE176: 420.7727258 | AF176: 203.9839028 | AG176: 91.81805465 | AH176: 16983.11931
J177: 164 | L177: 0 | M177: 98.59614143 | N177: 295.1561391 | O177: 461.494614 | P177: 934.0027786 | Q177: 1518.044731 | R177: 2090.544743 | S177: 2459.767672 | T177: 3575.406908 | U177: 4996.599045 | V177: 16397.63248 | X177: 0 | Y177: 4958.326801 | Z177: 4031.499054 | AA177: 3048.376569 | AB177: 1947.614801 | AC177: 1164.303991 | AD177: 764.483187 | AE177: 423.569283 | AF177: 264.2322001 | AG177: 56.40427995 | AH177: 16992.90086
J178: 171 | L178: 0 | M178: 106.2794184 | N178: 256.0326958 | O178: 453.9927011 | P178: 975.3833239 | Q178: 1703.389093 | R178: 2066.019414 | S178: 2456.441324 | T178: 3769.705103 | U178: 4968.964543 | V178: 17148.03737 | X178: 0 | Y178: 5029.907002 | Z178: 4120.535227 | AA178: 2871.438052 | AB178: 1971.432715 | AC178: 1182.959407 | AD178: 760.4255502 | AE178: 370.9158871 | AF178: 241.1271355 | AG178: 142.236109 | AH178: 16686.11967
J179: 169 | L179: 0 | M179: 106.0633147 | N179: 238.9885337 | O179: 548.6840852 | P179: 943.3317485 | Q179: 1641.838913 | R179: 1999.812266 | S179: 2557.280981 | T179: 3566.078091 | U179: 4916.983229 | V179: 16870.09261 | X179: 0 | Y179: 4972.003377 | Z179: 4091.707236 | AA179: 2865.131546 | AB179: 1907.914522 | AC179: 1260.738685 | AD179: 788.5823454 | AE179: 389.2398907 | AF179: 159.6899746 | AG179: 123.2509528 | AH179: 16739.91042
J180: 164 | L180: 0 | M180: 102.8824472 | N180: 281.4946176 | O180: 484.6620449 | P180: 987.0582332 | Q180: 1620.863184 | R180: 2087.484444 | S180: 2442.053181 | T180: 3565.001731 | U180: 4870.666817 | V180: 16371.43983 | X180: 0 | Y180: 5097.057879 | Z180: 4174.74574 | AA180: 3002.499475 | AB180: 2178.640722 | AC180: 1238.698122 | AD180: 704.7272448 | AE180: 371.1328317 | AF180: 218.4922163 | AG180: 78.48046997 | AH180: 16567.29417
J181: 162 | L181: 0 | M181: 77.95878265 | N181: 280.9031012 | O181: 483.7331323 | P181: 970.8187085 | Q181: 1559.349673 | R181: 2105.695048 | S181: 2475.960252 | T181: 3664.235406 | U181: 4902.743659 | V181: 16243.153 | X181: 0 | Y181: 4917.408271 | Z181: 4077.071632 | AA181: 3022.237394 | AB181: 1776.705514 | AC181: 1288.836965 | AD181: 771.8306244 | AE181: 409.9962316 | AF181: 277.0971363 | AG181: 97.39042334 | AH181: 16065.43113
J182: 173 | L182: 0 | M182: 106.0847356 | N182: 273.1720091 | O182: 505.0656279 | P182: 917.9312138 | Q182: 1728.726387 | R182: 2086.723394 | S182: 2494.756044 | T182: 3448.026482 | U182: 5241.677339 | V182: 17315.15962 | X182: 0 | Y182: 5015.39098 | Z182: 4007.206711 | AA182: 2959.841509 | AB182: 1981.651921 | AC182: 1108.020388 | AD182: 683.3617007 | AE182: 450.6761324 | AF182: 222.3789936 | AG182: 120.2803915 | AH182: 17335.66619
J183: 160 | L183: 0 | M183: 87.92708819 | N183: 296.6827332 | O183: 435.5881169 | P183: 872.059563 | Q183: 1665.770771 | R183: 2055.765537 | S183: 2501.805164 | T183: 3814.701529 | U183: 4819.71023 | V183: 16007.18132 | X183: 0 | Y183: 5022.881794 | Z183: 4042.600547 | AA183: 3017.752521 | AB183: 1911.527202 | AC183: 1245.13567 | AD183: 717.2627952 | AE183: 385.5346676 | AF183: 135.4201305 | AG183: 71.96248642 | AH183: 16078.84934
J184: 164 | L184: 0 | M184: 125.6568614 | N184: 250.7648314 | O184: 526.7765094 | P184: 908.5700473 | Q184: 1652.718757 | R184: 2175.313397 | S184: 2481.077781 | T184: 3945.066914 | U184: 4764.09107 | V184: 16420.1885 | X184: 0 | Y184: 4997.169574 | Z184: 4115.846538 | AA184: 2982.396777 | AB184: 2052.127624 | AC184: 1199.973666 | AD184: 689.6813924 | AE184: 425.5554261 | AF184: 242.2260113 | AG184: 63.00972221 | AH184: 16838.0606
J185: 173 | L185: 0 | M185: 88.11335625 | N185: 268.8369608 | O185: 426.1587183 | P185: 879.8815808 | Q185: 1588.791251 | R185: 2105.842405 | S185: 2549.495478 | T185: 3596.757074 | U185: 5492.097381 | V185: 17289.51753 | X185: 0 | Y185: 5127.073952 | Z185: 4239.465905 | AA185: 2874.060988 | AB185: 1947.151591 | AC185: 1187.931578 | AD185: 679.3800051 | AE185: 420.0804448 | AF185: 184.7599414 | AG185: 82.95113367 | AH185: 17038.38399
J186: 177 | L186: 0 | M186: 94.36514432 | N186: 250.6206783 | O186: 532.9143481 | P186: 890.9633096 | Q186: 1594.085052 | R186: 2144.455786 | S186: 2367.517727 | T186: 3626.321487 | U186: 5561.888809 | V186: 17677.25878 | X186: 0 | Y186: 5069.698184 | Z186: 4329.260822 | AA186: 2863.062373 | AB186: 1843.070199 | AC186: 1166.712582 | AD186: 742.6441965 | AE186: 434.5295269 | AF186: 228.1087823 | AG186: 98.14459124 | AH186: 17116.47829
J187: 169 | L187: 0 | M187: 74.66821475 | N187: 298.7620006 | O187: 512.3830762 | P187: 971.9955852 | Q187: 1519.201344 | R187: 2111.59327 | S187: 2532.634095 | T187: 3722.338214 | U187: 4602.106287 | V187: 16881.85645 | X187: 0 | Y187: 4991.529995 | Z187: 4159.269526 | AA187: 2969.163072 | AB187: 2051.052503 | AC187: 1218.9094 | AD187: 706.5709255 | AE187: 429.1536535 | AF187: 198.4537631 | AG187: 74.29156168 | AH187: 15758.28786
J188: 168 | L188: 0 | M188: 71.54386992 | N188: 297.0431964 | O188: 476.0912022 | P188: 955.2382644 | Q188: 1569.36423 | R188: 2194.064606 | S188: 2630.750866 | T188: 3764.280979 | U188: 5128.954525 | V188: 16794.76681 | X188: 0 | Y188: 4873.226635 | Z188: 4224.502292 | AA188: 3048.122708 | AB188: 1892.015327 | AC188: 1265.67249 | AD188: 826.252504 | AE188: 387.1916186 | AF188: 206.0038102 | AG188: 101.9201923 | AH188: 16201.54697
J189: 166 | L189: 0 | M189: 73.58181261 | N189: 280.4140951 | O189: 536.647388 | P189: 925.9524823 | Q189: 1530.4921 | R189: 2039.193429 | S189: 2554.446473 | T189: 3621.39215 | U189: 4777.183679 | V189: 16588.97089 | X189: 0 | Y189: 4953.861371 | Z189: 4279.111634 | AA189: 2870.754032 | AB189: 1994.381647 | AC189: 1128.536777 | AD189: 683.2952673 | AE189: 335.5236756 | AF189: 220.9893195 | AG189: 97.3247375 | AH189: 16883.39555
J190: 161 | L190: 0 | M190: 89.05237187 | N190: 252.061686 | O190: 437.0501798 | P190: 985.474302 | Q190: 1486.837889 | R190: 2111.58677 | S190: 2423.9909 | T190: 3689.304702 | U190: 5324.223144 | V190: 16104.2309 | X190: 0 | Y190: 5028.953757 | Z190: 4172.810288 | AA190: 2839.024858 | AB190: 2012.027023 | AC190: 1221.232132 | AD190: 696.9845321 | AE190: 355.893468 | AF190: 213.4603126 | AG190: 100.8404047 | AH190: 17305.78797
J191: 166 | L191: 0 | M191: 124.9574871 | N191: 213.7600331 | O191: 487.4085287 | P191: 976.8922357 | Q191: 1594.846774 | R191: 2050.578002 | S191: 2540.572873 | T191: 3590.107242 | U191: 5183.714893 | V191: 16631.90141 | X191: 0 | Y191: 4909.12153 | Z191: 4085.818355 | AA191: 3123.917184 | AB191: 2047.154946 | AC191: 1241.700452 | AD191: 750.531622 | AE191: 328.5628116 | AF191: 207.8180775 | AG191: 97.616084 | AH191: 17049.23562
J192: 176 | L192: 0 | M192: 152.8512464 | N192: 256.7768434 | O192: 512.9504368 | P192: 915.6271081 | Q192: 1561.507392 | R192: 2200.596524 | S192: 2406.730376 | T192: 3505.835033 | U192: 4738.971199 | V192: 17595.2181 | X192: 0 | Y192: 4937.707784 | Z192: 4048.215119 | AA192: 2923.087694 | AB192: 1900.546945 | AC192: 1209.202857 | AD192: 693.9841624 | AE192: 385.0578206 | AF192: 220.9521548 | AG192: 103.7346031 | AH192: 17441.35224
J193: 176 | L193: 0 | M193: 93.22795395 | N193: 284.7084082 | O193: 481.0652117 | P193: 976.6529804 | Q193: 1512.605531 | R193: 2089.932494 | S193: 2502.809864 | T193: 3766.358096 | U193: 4670.650746 | V193: 17550.30023 | X193: 0 | Y193: 4915.755501 | Z193: 4159.921586 | AA193: 2980.694576 | AB193: 1892.104955 | AC193: 1280.857855 | AD193: 684.8670787 | AE193: 371.6196627 | AF193: 238.8353903 | AG193: 71.29227216 | AH193: 17163.93244
J194: 172 | L194: 0 | M194: 107.9019735 | N194: 292.7716696 | O194: 457.5492783 | P194: 1061.658001 | Q194: 1503.572843 | R194: 2114.482777 | S194: 2467.073929 | T194: 3782.550093 | U194: 5208.051457 | V194: 17247.3331 | X194: 0 | Y194: 4902.596905 | Z194: 4065.568819 | AA194: 2866.100396 | AB194: 2069.160572 | AC194: 1115.036093 | AD194: 698.4217398 | AE194: 437.7677391 | AF194: 247.0956421 | AG194: 96.38838634 | AH194: 16215.88074
J195: =ROUND(V195/100,0) -> 168 | L195: 0 | M195: 92.17674602 | N195: 228.5828646 | O195: 507.8338948 | P195: 963.7448142 | Q195: 1654.317937 | R195: 2194.427324 | S195: 2420.675504 | T195: 3614.725955 | U195: 5267.709633 | V195: 16798.98113 | X195: 0 | Y195: 5050.33126 | Z195: 4166.122269 | AA195: 3012.37082 | AB195: 2032.033013 | AC195: 1151.385905 | AD195: 735.6281531 | AE195: 373.252833 | AF195: 240.7173947 | AG195: 87.90290747 | AH195: 17181.47974
J196: 169 | L196: 0 | M196: 95.0089498 | N196: 285.8644163 | O196: 482.2874553 | P196: 961.9861798 | Q196: 1640.015909 | R196: 2015.158019 | S196: 2504.810034 | T196: 3592.797553 | U196: 4302.705322 | V196: 16863.54594 | X196: 0 | Y196: 4807.635499 | Z196: 4138.39436 | AA196: 2864.763321 | AB196: 1976.201687 | AC196: 1245.567405 | AD196: 734.929977 | AE196: 348.3194645 | AF196: 263.0488392 | AG196: 98.16711623 | AH196: 17757.61406
J197: 165 | L197: 0 | M197: 95.19100048 | N197: 256.8972516 | O197: 548.2765495 | P197: 962.0927288 | Q197: 1599.254196 | R197: 2136.002619 | S197: 2474.744085 | T197: 3816.436741 | U197: 5016.378196 | V197: 16478.30727 | X197: 0 | Y197: 4973.172046 | Z197: 3989.46751 | AA197: 2913.808259 | AB197: 1978.273301 | AC197: 1142.380646 | AD197: 738.4076029 | AE197: 403.6578731 | AF197: 296.1331571 | AG197: 82.57858291 | AH197: 16824.07198
J198: 176 | L198: 0 | M198: 70.75113405 | N198: 218.7778966 | O198: 518.224596 | P198: 854.4589609 | Q198: 1479.826486 | R198: 2026.046091 | S198: 2456.061136 | T198: 3772.371652 | U198: 5020.383865 | V198: 17564.21389 | X198: 0 | Y198: 5015.499967 | Z198: 4191.778563 | AA198: 2912.495913 | AB198: 1942.305283 | AC198: 1175.076409 | AD198: 795.1029528 | AE198: 371.7426704 | AF198: 244.3643711 | AG198: 88.21003551 | AH198: 16473.96283
J199: 173 | L199: 0 | M199: 102.9497548 | N199: 208.35246 | O199: 473.6876294 | P199: 899.8361675 | Q199: 1555.13377 | R199: 2018.095828 | S199: 2509.612615 | T199: 3735.67556 | U199: 5393.403742 | V199: 17306.48627 | X199: 0 | Y199: 5054.9359 | Z199: 4121.079579 | AA199: 2620.70776 | AB199: 1904.028795 | AC199: 1260.938287 | AD199: 702.9662263 | AE199: 391.7459654 | AF199: 240.2018777 | AG199: 71.31818025 | AH199: 16116.37886
J200: 163 | L200: 0 | M200: 31.62940857 | N200: 306.4758547 | O200: 450.4538047 | P200: 952.759364 | Q200: 1672.443356 | R200: 2188.842406 | S200: 2436.712845 | T200: 3548.173302 | U200: 5231.352858 | V200: 16271.26596 | X200: 0 | Y200: 4954.78436 | Z200: 4168.437139 | AA200: 2947.184339 | AB200: 1950.92304 | AC200: 1216.198548 | AD200: 694.2208317 | AE200: 422.3600506 | AF200: 224.7345751 | AG200: 90.72088279 | AH200: 15760.74872
... 2050 more rows
